Workbook

Sheet Cover Sheet
C2: Model Details
C4: Model Name: | D4: TasNetworks
B20: Model Description/Scope

Sheet Model Information
B2: Process information
B3: The model starts with metering base data that lists total register inventory, this has been extracted by the Metering team leader from his database.
B6: Unit costs are calculated based on supplier contract prices to purchase, on costs and installation costs. As mechanical prices are no longer available the old prices have been indexed.
B9: The Metering regulated asset base has been rolled forward using the RFM template. This process starts with the opening asset value from last determination, adding actual expenditure from the reported RIN's for the years already completed, then the forecasted expenditure for the remaining years (2012/13 - 2016/17). The outputs from the process then set the opening RAB for 2017 which have been linked into the Building Blocks
B15: Building block Inputs takes the opening 2017 Regulated Asset base from the Metering RFM then adds in the forecasted POW expenditure during the determination period. This expenditure includes direct metering Capex & Opex expenditure as well as a corporate allocation of Capex and Opex overheads. The expenditure shapes the RAB that feeds into the PTRM determining the level of revenue that can be generated.
B21: Register volume trends are forecasted until the end of 2015/16 based on the last 4 years average movement. the Metering team leader has assumed that the trend will continue. There is also a 6 month period at the start of the determination period before the smart meter reform starts (assumed to be 1 January 2018). During this period there will be no replacement programs performed just customer initiated works (new and alterations).
B27: Register numbers need to be converted into meters to calculate the change in meters impact on register numbers, which the Metering team leader has confirmed is assumed to be 1:1 for business's and 2:1 for Domestic meters. This converts the 519k of registers into 280k of meters that will need to be replaced.
B31: Forecast meter volumes during the future regulatory periods (after the first 6 months) are assuming that we are not installing smart meters and customers/retailers are paying for the capital costs. Therefore the only movement in meter volumes are the TasNetworks meters being replaced via customer demand and the replacement program that will be ran by the metering coordinator.
B36: The register volumes feed into the revenue tab where a weighting for the RAB is determined using the number of mechanical & electric meters and their cost per unit. This weighting is influenced by the mix of mechanical and electric as they have different unit costs
B40: The PTRM is linked to the RAB and forecasted expenditure which determines the capped revenue for metering. PTRM revenue feeds into the revenue tab where there is a calculation to determine the OPEX and CAPEX daily charge based on the weighting for the type of register.
B49: Assumptions
B50: Customer demand for a smart meters is not expected to increase therefor the only take ups are alterations and new meters.
B52: x
B53: Register volumes between the count in 2015 and the end of 2016/17 are assumed to follow the trend of the last 5 years. the Metering team leader
B56: Registers then need to be converted into meters which the Metering team leader is confirmed can be assumed to be 1:1 for all meters except 2:1 for Domestic Electronic meters.
B59: Assumed that the smart meter reform will not start until 1 January 2018
B61: Assumed that there will be no meter replacements via TasNetworks replacement plan during the 6 month period 1 July 2017 - December 2017 as the smart meters will be installed after this period.
B64: Based on previous averages there are 2,000 new connections each year, 5,000 meter replacements carried out by TasNetworks for old meters and 5,000 alterations that are customer driven (solar for example) . Therefore there are around 12,000 normal meter changes annually, 10,000 of which are replacements of TasNetworks regulated meters.
B69: Assumed meter replacements are evenly distributed across the various meters, previously all replacements were assumed to be mechanical however this is not the case anymore according to the Metering team leader.
B72: Unit costs have been sourced from the contractors contract, provided by the inventory officer.
B74: Assumed that corporate overheads will remain consistent. TasNetworks plans to find savings to offset any increases during the DD17 years included.

Sheet Revenue Nominal Smoothed
B1: Revenue per the PTRM workpaper | D1: ='Master Data'!I$28 -> Year 3 | E1: ='Master Data'!J$28 -> Year 4
B2: Year | D2: ='Master Data'!I$29 -> 2017-18 | E2: ='Master Data'!J$29 -> 2018-19
B3: Nominal ($m) | J3: KEY
J4: PTRM
B5: Return on capital | C5: Link to PTRM | D5: 2.816470013 | E5: 2.698011826 | J5: Aurora decision
B6: Regulated Asset base (regulatory depreciation) | C6: Link to PTRM | D6: 3.543135989 | E6: 3.888198185 | J6: Linked below
D8: =SUM(D5:D7) -> 6.359606002 | E8: 6.586210011
B10: Operating Expenditure | C10: Link to PTRM | D10: 5.333069544 | E10: 5.374551096
B11: After Tax and Imputation credits | C11: Below weighting | D11: 0.9324805873 | E11: 0.9571188464
D12: =SUM(D10:D11) -> 6.265550132 | E12: 6.331669942
C13: Total Revenue | D13: =D8+D12 -> 12.62515613 | E13: 12.91787995
B14: Smoothed Revenue | C14: Link to PTRM | D14: 12.75217318 | E14: 12.78370356
B15: After Tax and Imputation credits | C15: Link to PTRM | D15: 0.9324805873 | E15: 0.9568440942
B19: Capex Revenue Smoothed | D19: =D8/D13*D14 -> 6.423587655 | E19: =E8/E13*E14 -> 6.517799879
B20: Opex Revenue Smoothed | D20: =D12/D13*D14 -> 6.328585523 | E20: =E12/E13*E14 -> 6.265903685
D21: =SUM(D19:D20) -> 12.75217318 | E21: =SUM(E19:E20) -> 12.78370356
D23: For Pricing Schedule
D24: ='Master Data'!I23 -> 365 | E24: ='Master Data'!J23 -> 365 | G24: =D24 -> 365 | H24: =E24 -> 365
D25: CAPEX Price (cents) per register per day | G25: Revenue per Year ($m) | J25: Annual Opex Cost
C26: Capex weighting | D26: ='Master Data'!I$28 -> Year 3 | E26: ='Master Data'!J$28 -> Year 4 | G26: ='Master Data'!I$28 -> Year 3 | H26: ='Master Data'!J$28 -> Year 4 | J26: ='Master Data'!I$28 -> Year 3 | K26: ='Master Data'!J$28 -> Year 4
B27: Meter Type | D27: ='Master Data'!I$29 -> 2017-18 | E27: ='Master Data'!J$29 -> 2018-19 | G27: ='Master Data'!I$29 -> 2017-18 | H27: ='Master Data'!J$29 -> 2018-19 | J27: ='Master Data'!I$29 -> 2017-18 | K27: ='Master Data'!J$29 -> 2018-19
B28: Business LV - Single Phase | C28: =$J$102 -> 0.0349519333 | D28: =ROUND(D$19*10^6*$C28/D81/D$24*'Master Data'!$B$45,3) -> 3.092 | E28: =ROUND(E$19*10^6*$C28/E81/E$24*'Master Data'!$B$45,3) -> 3.137 | G28: =D28*D81*G$24/'Master Data'!$B$45/10^6 -> 0.2245197052 | H28: =E28*E81*H$24/'Master Data'!$B$45/10^6 -> 0.2277872947 | J28: =ROUND((D28)*D$24/'Master Data'!$B$45,2) -> 11.29 | K28: =ROUND((E28)*E$24/'Master Data'!$B$45,2) -> 11.45
B29: Business LV - Multi Phase | C29: =$J$106 -> 0.0715469128 | D29: =ROUND(D$19*10^6*$C29/D82/D$24*'Master Data'!$B$45,3) -> 6.818 | E29: =ROUND(E$19*10^6*$C29/E82/E$24*'Master Data'!$B$45,3) -> 6.918 | G29: =D29*D69*G$24/'Master Data'!$B$45/10^6 -> 0.4595642219 | H29: =E29*E82*H$24/'Master Data'!$B$45/10^6 -> 0.4663046769 | J29: =ROUND((D29)*D$24/'Master Data'!$B$45,2) -> 24.89 | K29: =ROUND((E29)*E$24/'Master Data'!$B$45,2) -> 25.25
B30: Business LV - CT Meters | C30: =$J$110 -> 0.01165124147 | D30: =ROUND(D$19*10^6*$C30/D83/D$24*'Master Data'!$B$45,3) -> 9.009 | E30: =ROUND(E$19*10^6*$C30/E83/E$24*'Master Data'!$B$45,3) -> 9.141 | G30: =D30*D70*G$24/'Master Data'!$B$45/10^6 -> 0.0748413666 | H30: =E30*E83*H$24/'Master Data'!$B$45/10^6 -> 0.0759379434 | J30: =ROUND((D30)*D$24/'Master Data'!$B$45,2) -> 32.88 | K30: =ROUND((E30)*E$24/'Master Data'!$B$45,2) -> 33.36
B31: Domestic LV - Single Phase | C31: =$J$114 -> 0.7189360304 | D31: =ROUND(D$19*10^6*$C31/D84/D$24*'Master Data'!$B$45,3) -> 3.004 | E31: =ROUND(E$19*10^6*$C31/E84/E$24*'Master Data'!$B$45,3) -> 3.048 | G31: =D31*D71*G$24/'Master Data'!$B$45/10^6 -> 4.618114086 | H31: =E31*E84*H$24/'Master Data'!$B$45/10^6 -> 4.685756237 | J31: =ROUND((D31)*D$24/'Master Data'!$B$45,2) -> 10.96 | K31: =ROUND((E31)*E$24/'Master Data'!$B$45,2) -> 11.13
B32: Domestic LV - Multi Phase | C32: =$J$118 -> 0.0566207095 | D32: =ROUND(D$19*10^6*$C32/D85/D$24*'Master Data'!$B$45,3) -> 6.262 | E32: =ROUND(E$19*10^6*$C32/E85/E$24*'Master Data'!$B$45,3) -> 6.354 | G32: =D32*D72*G$24/'Master Data'!$B$45/10^6 -> 0.3636894456 | H32: =E32*E85*H$24/'Master Data'!$B$45/10^6 -> 0.3690326952 | J32: =ROUND((D32)*D$24/'Master Data'!$B$45,2) -> 22.86 | K32: =ROUND((E32)*E$24/'Master Data'!$B$45,2) -> 23.19
B33: Domestic LV - CT Meters | C33: =$J$122 -> 0.0005684154312 | D33: =ROUND(D$19*10^6*$C33/D86/D$24*'Master Data'!$B$45,3) -> 7.971 | E33: =ROUND(E$19*10^6*$C33/E86/E$24*'Master Data'!$B$45,3) -> 8.088 | G33: =D33*D73*G$24/'Master Data'!$B$45/10^6 -> 0.003651315825 | H33: =E33*E86*H$24/'Master Data'!$B$45/10^6 -> 0.0037049106 | J33: =ROUND((D33)*D$24/'Master Data'!$B$45,2) -> 29.09 | K33: =ROUND((E33)*E$24/'Master Data'!$B$45,2) -> 29.52
B34: Other Meters | C34: =$J$125 -> 0.1057247571 | D34: =ROUND(D$19*10^6*$C34/D87/D$24*'Master Data'!$B$45,3) -> 6.26 | E34: =ROUND(E$19*10^6*$C34/E87/E$24*'Master Data'!$B$45,3) -> 6.351 | G34: =D34*D74*G$24/'Master Data'!$B$45/10^6 -> 0.6791751005 | H34: =E34*E87*H$24/'Master Data'!$B$45/10^6 -> 0.6890480932 | J34: =ROUND((D34)*D$24/'Master Data'!$B$45,2) -> 22.85 | K34: =ROUND((E34)*E$24/'Master Data'!$B$45,2) -> 23.18
C35: =SUM(C28:C34) -> 1 | G35: =SUM(G28:G34) -> 6.423555242 | H35: 6.517571851
F36: Check Calc | G36: =D19-G35 -> 3.241278491e-05 | H36: =E19-H35 -> 0.0002280278565
D38: OPEX Price (cents) per register per day | G38: Revenue per Year ($m) | J38: Annual Capex Cost
C39: Weighting | D39: ='Master Data'!I$28 -> Year 3 | E39: ='Master Data'!J$28 -> Year 4 | G39: ='Master Data'!I$28 -> Year 3 | H39: ='Master Data'!J$28 -> Year 4 | J39: ='Master Data'!I$28 -> Year 3 | K39: ='Master Data'!J$28 -> Year 4
B40: Meter Type | D40: ='Master Data'!I$29 -> 2017-18 | E40: ='Master Data'!J$29 -> 2018-19 | G40: ='Master Data'!I$29 -> 2017-18 | H40: ='Master Data'!J$29 -> 2018-19 | J40: ='Master Data'!I$29 -> 2017-18 | K40: ='Master Data'!J$29 -> 2018-19
B41: =B28 -> Business LV - Single Phase | C41: =$J$102 -> 0.0349519333 | D41: =ROUND(D$20*10^6*$C41/D68/D$24*'Master Data'!$B$45,3) -> 3.046 | E41: =ROUND(E$20*10^6*$C41/E68/E$24*'Master Data'!$B$45,3) -> 3.053 | G41: =D41*D68*G$24/'Master Data'!$B$45/10^6 -> 0.2211795026 | H41: =E41*E68*H$24/'Master Data'!$B$45/10^6 -> 0.2190133663 | J41: =ROUND((D41)*D$24/'Master Data'!$B$45,2) -> 11.12 | K41: =ROUND((E41)*E$24/'Master Data'!$B$45,2) -> 11.14
B42: =B29 -> Business LV - Multi Phase | C42: =$J$106 -> 0.0715469128 | D42: =ROUND(D$20*10^6*$C42/D69/D$24*'Master Data'!$B$45,3) -> 6.718 | E42: =ROUND(E$20*10^6*$C42/E69/E$24*'Master Data'!$B$45,3) -> 6.732 | G42: =D42*D69*G$24/'Master Data'!$B$45/10^6 -> 0.4528237669 | H42: =E42*E69*H$24/'Master Data'!$B$45/10^6 -> 0.4482879192 | J42: =ROUND((D42)*D$24/'Master Data'!$B$45,2) -> 24.52 | K42: =ROUND((E42)*E$24/'Master Data'!$B$45,2) -> 24.57
B43: Business LV - CT Meters | C43: =$J$110 -> 0.01165124147 | D43: =ROUND(D$20*10^6*$C43/D70/D$24*'Master Data'!$B$45,3) -> 8.876 | E43: =ROUND(E$20*10^6*$C43/E70/E$24*'Master Data'!$B$45,3) -> 8.894 | G43: =D43*D70*G$24/'Master Data'!$B$45/10^6 -> 0.0737364824 | H43: =E43*E70*H$24/'Master Data'!$B$45/10^6 -> 0.0730095119 | J43: =ROUND((D43)*D$24/'Master Data'!$B$45,2) -> 32.4 | K43: =ROUND((E43)*E$24/'Master Data'!$B$45,2) -> 32.46
B44: Domestic LV - Single Phase | C44: =$J$114 -> 0.7189360304 | D44: =ROUND(D$20*10^6*$C44/D71/D$24*'Master Data'!$B$45,3) -> 2.96 | E44: =ROUND(E$20*10^6*$C44/E71/E$24*'Master Data'!$B$45,3) -> 2.966 | G44: =D44*D71*G$24/'Master Data'!$B$45/10^6 -> 4.550471936 | H44: =E44*E71*H$24/'Master Data'!$B$45/10^6 -> 4.504700294 | J44: =ROUND((D44)*D$24/'Master Data'!$B$45,2) -> 10.8 | K44: =ROUND((E44)*E$24/'Master Data'!$B$45,2) -> 10.83
B45: Domestic LV - Multi Phase | C45: =$J$118 -> 0.0566207095 | D45: =ROUND(D$20*10^6*$C45/D72/D$24*'Master Data'!$B$45,3) -> 6.17 | E45: =ROUND(E$20*10^6*$C45/E72/E$24*'Master Data'!$B$45,3) -> 6.183 | G45: =D45*D72*G$24/'Master Data'!$B$45/10^6 -> 0.358346196 | H45: =E45*E72*H$24/'Master Data'!$B$45/10^6 -> 0.354768174 | J45: =ROUND((D45)*D$24/'Master Data'!$B$45,2) -> 22.52 | K45: =ROUND((E45)*E$24/'Master Data'!$B$45,2) -> 22.57
B46: Domestic LV - CT Meters | C46: =$J$122 -> 0.0005684154312 | D46: =ROUND(D$20*10^6*$C46/D73/D$24*'Master Data'!$B$45,3) -> 7.853 | E46: =ROUND(E$20*10^6*$C46/E73/E$24*'Master Data'!$B$45,3) -> 7.869 | G46: =D46*D73*G$24/'Master Data'!$B$45/10^6 -> 0.003597262975 | H46: =E46*E73*H$24/'Master Data'!$B$45/10^6 -> 0.0035615094 | J46: =ROUND((D46)*D$24/'Master Data'!$B$45,2) -> 28.66 | K46: =ROUND((E46)*E$24/'Master Data'!$B$45,2) -> 28.72
B47: Other Meters | C47: =$J$125 -> 0.1057247571 | D47: =ROUND(D$20*10^6*$C47/D74/D$24*'Master Data'!$B$45,3) -> 6.167 | E47: =ROUND(E$20*10^6*$C47/E74/E$24*'Master Data'!$B$45,3) -> 6.18 | G47: =D47*D74*G$24/'Master Data'!$B$45/10^6 -> 0.669085119 | H47: =E47*E74*H$24/'Master Data'!$B$45/10^6 -> 0.662408862 | J47: =ROUND((D47)*D$24/'Master Data'!$B$45,2) -> 22.51 | K47: =ROUND((E47)*E$24/'Master Data'!$B$45,2) -> 22.56
C48: =SUM(C41:C47) -> 1 | G48: =SUM(G41:G47) -> 6.329240266 | H48: 6.265749636
F49: Check Calc | G49: =D20-G48 -> -0.0006547427902 | H49: =E20-H48 -> 0.0001540486291
D51: Total Price (cents) per register per day | G51: Revenue per Year ($m) | J51: Annual Cost both
C52: Capex weighting | D52: ='Master Data'!I$28 -> Year 3 | E52: ='Master Data'!J$28 -> Year 4 | G52: ='Master Data'!I$28 -> Year 3 | H52: ='Master Data'!J$28 -> Year 4 | J52: ='Master Data'!I$28 -> Year 3 | K52: ='Master Data'!J$28 -> Year 4
B53: Meter Type | D53: ='Master Data'!I$29 -> 2017-18 | E53: ='Master Data'!J$29 -> 2018-19 | G53: ='Master Data'!I$29 -> 2017-18 | H53: ='Master Data'!J$29 -> 2018-19 | J53: ='Master Data'!I$29 -> 2017-18 | K53: ='Master Data'!J$29 -> 2018-19
B54: =B41 -> Business LV - Single Phase | C54: =$J$102 -> 0.0349519333 | D54: =D28+D41 -> 6.138 | E54: =E28+E41 -> 6.19 | G54: =G28+G41 -> 0.4456992078 | H54: =H28+H41 -> 0.446800661 | J54: =(D54)*D$24/'Master Data'!$B$45 -> 22.4037 | K54: =(E54)*E$24/'Master Data'!$B$45 -> 22.5935
B55: =B42 -> Business LV - Multi Phase | C55: =$J$106 -> 0.0715469128 | D55: 13.536 | E55: 13.65 | G55: =G29+G42 -> 0.9123879888 | H55: 0.9145925961 | J55: =(D55)*D$24/'Master Data'!$B$45 -> 49.4064 | K55: =(E55)*E$24/'Master Data'!$B$45 -> 49.8225
B56: Business LV - CT Meters | C56: =$J$110 -> 0.01165124147 | D56: 17.885 | E56: 18.035 | G56: 0.148577849 | H56: 0.1489474553 | J56: =(D56)*D$24/'Master Data'!$B$45 -> 65.28025 | K56: =(E56)*E$24/'Master Data'!$B$45 -> 65.82775
B57: Domestic LV - Single Phase | C57: =$J$114 -> 0.7189360304 | D57: 5.964 | E57: 6.014 | G57: 9.168586022 | H57: 9.19045653 | J57: =(D57)*D$24/'Master Data'!$B$45 -> 21.7686 | K57: =(E57)*E$24/'Master Data'!$B$45 -> 21.9511
B58: Domestic LV - Multi Phase | C58: =$J$118 -> 0.0566207095 | D58: 12.432 | E58: 12.537 | G58: 0.7220356416 | H58: 0.7238008692 | J58: =(D58)*D$24/'Master Data'!$B$45 -> 45.3768 | K58: =(E58)*E$24/'Master Data'!$B$45 -> 45.76005
B59: Domestic LV - CT Meters | C59: =$J$122 -> 0.0005684154312 | D59: 15.824 | E59: 15.957 | G59: 0.0072485788 | H59: 0.00726642 | J59: =(D59)*D$24/'Master Data'!$B$45 -> 57.7576 | K59: =(E59)*E$24/'Master Data'!$B$45 -> 58.24305
B60: Other Meters | C60: =$J$125 -> 0.1057247571 | D60: 12.427 | E60: 12.531 | G60: 1.348260219 | H60: 1.351456955 | J60: =(D60)*D$24/'Master Data'!$B$45 -> 45.35855 | K60: =(E60)*E$24/'Master Data'!$B$45 -> 45.73815
C61: =SUM(C54:C60) -> 1 | G61: =SUM(G54:G60) -> 12.75279551 | H61: 12.78332149
F62: Check Calc | G62: =G61-D21 -> 0.0006223300053 | H62: =H61-E21 -> -0.0003820764856
D65: Volumes - with attrition of smart meter take up
D66: ='Master Data'!I$28 -> Year 3 | E66: ='Master Data'!J$28 -> Year 4
B67: Meter Type | D67: ='Master Data'!I$29 -> 2017-18 | E67: ='Master Data'!J$29 -> 2018-19
B68: =B41 -> Business LV - Single Phase | D68: ='Volume Trending'!Q56 -> 19894 | E68: ='Volume Trending'!R56 -> 19654
B69: Business LV - Multi Phase | D69: ='Volume Trending'!Q60 -> 18467 | E69: ='Volume Trending'!R60 -> 18244
B70: Business LV - CT Meters | D70: ='Volume Trending'!Q64 -> 2276 | E70: ='Volume Trending'!R64 -> 2249
B71: Domestic LV - Single Phase | D71: ='Volume Trending'!Q68 -> 421184 | E71: ='Volume Trending'!R68 -> 416104
B72: Domestic LV - Multi Phase | D72: ='Volume Trending'!Q72 -> 15912 | E72: ='Volume Trending'!R72 -> 15720
B73: Domestic LV - CT Meters | D73: ='Volume Trending'!Q76 -> 125.5 | E73: ='Volume Trending'!R76 -> 124
B74: Other Meters | D74: ='Volume Trending'!Q82 -> 29724.5 | E74: ='Volume Trending'!R82 -> 29366
D75: =SUM(D68:D74) -> 507583 | E75: 501461
D76: =D75-'Volume Trending'!Q84 -> 0 | E76: =E75-'Volume Trending'!R84 -> 0
D78: Volumes - with no attrition for unavoidable costs
D79: ='Master Data'!I$28 -> Year 3 | E79: ='Master Data'!J$28 -> Year 4
D80: ='Master Data'!I$29 -> 2017-18 | E80: ='Master Data'!J$29 -> 2018-19
B81: =B68 -> Business LV - Single Phase | D81: =D68 -> 19894 | E81: =D81 -> 19894
B82: =B69 -> Business LV - Multi Phase | D82: =D69 -> 18467 | E82: =D82 -> 18467
B83: Business LV - CT Meters | D83: 2276 | E83: 2276
B84: Domestic LV - Single Phase | D84: 421184 | E84: 421184
B85: Domestic LV - Multi Phase | D85: 15912 | E85: 15912
B86: Domestic LV - CT Meters | D86: 125.5 | E86: 125.5
B87: Other Meters | D87: 29724.5 | E87: 29724.5
D88: =SUM(D81:D87) -> 507583 | E88: 507583
B97: Meter Type | C97: Meter Volumes | F97: Unit Prices | G97: Meter Type | I97: Weighted cost | J97: Weighting of total cost | K97: Prior splits if required to step chanage for data annomilies
B98: Weighting of costs based on calcualted value of the assets | K98: 2011/12 split
B100: Business LV - Single Phase | C100: ='Volume Trending'!I6 -> 18205 | F100: ='Unit Costs'!D$82 -> 168.8358508 | G100: Mechanical | I100: =C100*F100 -> 3073656.663
B101: Business LV - Single Phase | C101: ='Volume Trending'!I7 -> 3928 | F101: ='Unit Costs'!D$81 -> 269.354 | G101: Electronic | I101: =C101*F101 -> 1058022.512
C102: =SUM(C100:C101) -> 22133 | I102: =SUBTOTAL(9,I100:I101) -> 4131679.175 | J102: =I102/$I$127 -> 0.0349519333
B104: Business LV - Multi Phase | C104: ='Volume Trending'!I11 -> 7509 | F104: ='Unit Costs'!D$84 -> 388.5122902 | G104: Mechanical | I104: =C104*F104 -> 2917338.787
B105: Business LV - Multi Phase | C105: ='Volume Trending'!I12 -> 12929 | F105: ='Unit Costs'!D$83 -> 428.513 | G105: Electronic | I105: =C105*F105 -> 5540244.577
C106: =SUM(C104:C105) -> 20438 | I106: =SUBTOTAL(9,I104:I105) -> 8457583.364 | J106: =I106/$I$127 -> 0.0715469128
B108: Business LV - CT Meters | C108: ='Volume Trending'!I16 -> 602 | F108: ='Unit Costs'!D$86 -> 388.5122902 | G108: Mechanical | H108: =C108*F108 -> 233884.3987 | I108: =$H$110*K108*$J$108 -> 270526.8549 | J108: 1.1 | K108: 0.2119521912
B109: Business LV - CT Meters | C109: ='Volume Trending'!I17 -> 1645 | F109: ='Unit Costs'!D$85 -> 563.186 | G109: Electronic | H109: =C109*F109 -> 926440.97 | I109: =$H$110*K109*$J$108 -> 1106770.112 | K109: 0.8671314741
C110: =SUM(C108:C109) -> 2247 | H110: =SUBTOTAL(9,H108:H109) -> 1160325.369 | I110: =SUBTOTAL(9,I108:I109) -> 1377296.967 | J110: =I110/$I$127 -> 0.01165124147
B112: Domestic LV - Single Phase | C112: ='Volume Trending'!I21 -> 259105 | F112: ='Unit Costs'!D$82 -> 168.8358508 | G112: Mechanical | I112: =C112*F112 -> 43746213.11
B113: Domestic LV - Single Phase | C113: ='Volume Trending'!I22 -> 153105 | F113: ='Unit Costs'!D$81 -> 269.354 | G113: Electronic | I113: =C113*F113 -> 41239444.17
C114: =SUM(C112:C113) -> 412210 | I114: =SUBTOTAL(9,I112:I113) -> 84985657.28 | J114: =I114/$I$127 -> 0.7189360304
B116: Domestic LV - Multi Phase | C116: ='Volume Trending'!I26 -> 5700 | F116: ='Unit Costs'!D$84 -> 388.5122902 | G116: Mechanical | H116: =C116*F116 -> 2214520.054 | I116: =$H$118*K116*$J$116 -> 3237813.984 | J116: 1 | K116: 0.5367602063
B117: Domestic LV - Multi Phase | C117: ='Volume Trending'!I27 -> 8909 | F117: ='Unit Costs'!D$83 -> 428.513 | G117: Electronic | H117: =C117*F117 -> 3817622.317 | I117: =$H$118*K117*$J$116 -> 3455338.132 | K117: 0.5728210508
C118: =SUM(C116:C117) -> 14609 | H118: =SUBTOTAL(9,H116:H117) -> 6032142.371 | I118: =SUBTOTAL(9,I116:I117) -> 6693152.115 | J118: =I118/$I$127 -> 0.0566207095
B120: Domestic LV - CT Meters | C120: ='Volume Trending'!I31 -> 82 | F120: ='Unit Costs'!D$86 -> 388.5122902 | G120: Mechanical | H120: =C120*F120 -> 31858.0078 | I120: =$H$122*K120*$J$120 -> 23670.10963 | J120: 1.6 | K120: 0.3522727273
B121: Domestic LV - CT Meters | C121: ='Volume Trending'!I32 -> 18 | F121: ='Unit Costs'!D$85 -> 563.186 | G121: Electronic | H121: =C121*F121 -> 10137.348 | I121: =$H$122*K121*$J$120 -> 43522.45965 | K121: 0.6477272727
C122: =SUM(C120:C121) -> 100 | H122: =SUBTOTAL(9,H120:H121) -> 41995.3558 | I122: =SUBTOTAL(9,I120:I121) -> 67192.56928 | J122: =I122/$I$127 -> 0.0005684154312
B124: Other Meters -PAYG | C124: ='Volume Trending'!I36 -> 30382 | F124: ='Unit Costs'!D$87 -> 411.354 | I124: =C124*F124 -> 12497757.23
I125: =SUBTOTAL(9,I124:I124) -> 12497757.23 | J125: =I125/$I$127 -> 0.1057247571
I127: =SUBTOTAL(9,I100:I126) -> 118210318.7

Sheet Revenue Nominal
B1: Revenue per the PTRM workpaper | D1: ='Master Data'!I$28 -> Year 3 | E1: ='Master Data'!J$28 -> Year 4
B2: Year | D2: ='Master Data'!I$29 -> 2017-18 | E2: ='Master Data'!J$29 -> 2018-19
B3: Nominal ($m) | J3: KEY
J4: PTRM
B5: Return on capital | C5: Link to PTRM | D5: 2.830341723 | E5: 2.711854583 | J5: Aurora decision
B6: Regulated Asset base (regulatory depreciation) | C6: Link to PTRM | D6: 3.586521422 | E6: 3.941114613 | J6: Linked below
D8: =SUM(D5:D7) -> 6.416863145 | E8: =SUM(E5:E7) -> 6.652969196
B10: Operating Expenditure | C10: Link to PTRM | D10: 5.333183952 | E10: 5.374665264
B11: After Tax and Imputation credits | C11: Below weighting | D11: =D15 -> 0.9339557974 | E11: 0.9586627394
D12: =SUM(D10:D11) -> 6.267139749 | E12: =SUM(E10:E11) -> 6.333328004
C13: Total Revenue | D13: =D8+D12 -> 12.68400289 | E13: 12.9862972
B15: After Tax and Imputation credits | C15: Link to PTRM | D15: 0.9339557974 | E15: 0.9586627394
D20: ='Master Data'!I23 -> 365 | E20: ='Master Data'!J23 -> 365 | G20: =D20 -> 365 | H20: =E20 -> 365
D21: CAPEX Price (cents) per register per day | G21: Revenue per Year ($m) | J21: Annual Opex Cost
C22: Capex weighting | D22: ='Master Data'!I$28 -> Year 3 | E22: ='Master Data'!J$28 -> Year 4 | G22: ='Master Data'!I$28 -> Year 3 | H22: ='Master Data'!J$28 -> Year 4 | J22: ='Master Data'!I$28 -> Year 3 | K22: ='Master Data'!J$28 -> Year 4
B23: Meter Type | D23: ='Master Data'!I$29 -> 2017-18 | E23: ='Master Data'!J$29 -> 2018-19 | G23: ='Master Data'!I$29 -> 2017-18 | H23: ='Master Data'!J$29 -> 2018-19 | J23: ='Master Data'!I$29 -> 2017-18 | K23: ='Master Data'!J$29 -> 2018-19
B24: Business LV - Single Phase | C24: =$J$98 -> 0.0349519333 | D24: =D$8*10^6*$C24/D77/D$20*'Master Data'!$B$45 -> 3.088723284 | E24: =E$8*10^6*$C24/E77/E$20*'Master Data'!$B$45 -> 3.202371688 | G24: =D24*D77*G$20/'Master Data'!$B$45/10^6 -> 0.2242817727 | H24: =E24*E77*H$20/'Master Data'!$B$45/10^6 -> 0.2325341356 | J24: =(D24)*D$20/'Master Data'!$B$45 -> 11.27383998 | K24: =(E24)*E$20/'Master Data'!$B$45 -> 11.68865666
B25: Business LV - Multi Phase | C25: =$J$102 -> 0.0715469128 | D25: =D$8*10^6*$C25/D78/D$20*'Master Data'!$B$45 -> 6.81121301 | E25: =E$8*10^6*$C25/E78/E$20*'Master Data'!$B$45 -> 7.061829015 | G25: =D25*D65*G$20/'Master Data'!$B$45/10^6 -> 0.4591067479 | H25: =E25*E78*H$20/'Master Data'!$B$45/10^6 -> 0.4759994069 | J25: =(D25)*D$20/'Master Data'!$B$45 -> 24.86092749 | K25: =(E25)*E$20/'Master Data'!$B$45 -> 25.77567591
B26: Business LV - CT Meters | C26: =$J$106 -> 0.01165124147 | D26: =D$8*10^6*$C26/D79/D$20*'Master Data'!$B$45 -> 8.99973782 | E26: =E$8*10^6*$C26/E79/E$20*'Master Data'!$B$45 -> 9.330879767 | G26: =D26*D66*G$20/'Master Data'!$B$45/10^6 -> 0.07476442196 | H26: =E26*E79*H$20/'Master Data'!$B$45/10^6 -> 0.07751535058 | J26: =(D26)*D$20/'Master Data'!$B$45 -> 32.84904304 | K26: =(E26)*E$20/'Master Data'!$B$45 -> 34.05771115
B27: Domestic LV - Single Phase | C27: =$J$110 -> 0.7189360304 | D27: =D$8*10^6*$C27/D80/D$20*'Master Data'!$B$45 -> 3.000877706 | E27: =E$8*10^6*$C27/E80/E$20*'Master Data'!$B$45 -> 3.111293866 | G27: =D27*D67*G$20/'Master Data'!$B$45/10^6 -> 4.613314117 | H27: =E27*E80*H$20/'Master Data'!$B$45/10^6 -> 4.783059264 | J27: =(D27)*D$20/'Master Data'!$B$45 -> 10.95320363 | K27: =(E27)*E$20/'Master Data'!$B$45 -> 11.35622261
B28: Domestic LV - Multi Phase | C28: =$J$114 -> 0.0566207095 | D28: =D$8*10^6*$C28/D81/D$20*'Master Data'!$B$45 -> 6.25576534 | E28: =E$8*10^6*$C28/E81/E$20*'Master Data'!$B$45 -> 6.485943859 | G28: =D28*D68*G$20/'Master Data'!$B$45/10^6 -> 0.3633273441 | H28: =E28*E81*H$20/'Master Data'!$B$45/10^6 -> 0.3766958362 | J28: =(D28)*D$20/'Master Data'!$B$45 -> 22.83354349 | K28: =(E28)*E$20/'Master Data'!$B$45 -> 23.67369508
B29: Domestic LV - CT Meters | C29: =$J$118 -> 0.0005684154312 | D29: =D$8*10^6*$C29/D82/D$20*'Master Data'!$B$45 -> 7.962547687 | E29: =E$8*10^6*$C29/E82/E$20*'Master Data'!$B$45 -> 8.255526616 | G29: =D29*D69*G$20/'Master Data'!$B$45/10^6 -> 0.003647444032 | H29: =E29*E82*H$20/'Master Data'!$B$45/10^6 -> 0.003781650354 | J29: =(D29)*D$20/'Master Data'!$B$45 -> 29.06329906 | K29: =(E29)*E$20/'Master Data'!$B$45 -> 30.13267215
B30: Other Meters | C30: =$J$121 -> 0.1057247571 | D30: =D$8*10^6*$C30/D83/D$20*'Master Data'!$B$45 -> 6.253052147 | E30: =E$8*10^6*$C30/E83/E$20*'Master Data'!$B$45 -> 6.483130834 | G30: =D30*D70*G$20/'Master Data'!$B$45/10^6 -> 0.6784212972 | H30: =E30*E83*H$20/'Master Data'!$B$45/10^6 -> 0.7033835521 | J30: =(D30)*D$20/'Master Data'!$B$45 -> 22.82364034 | K30: =(E30)*E$20/'Master Data'!$B$45 -> 23.66342755
C31: =SUM(C24:C30) -> 1 | G31: =SUM(G24:G30) -> 6.416863145 | H31: 6.652969196
F32: Check Calc | G32: =D8-G31 -> 0 | H32: =E8-H31 -> 0
D34: OPEX Price (cents) per register per day | G34: Revenue per Year ($m) | J34: Annual Capex Cost
C35: Capex weighting | D35: ='Master Data'!I$28 -> Year 3 | E35: ='Master Data'!J$28 -> Year 4 | G35: ='Master Data'!I$28 -> Year 3 | H35: ='Master Data'!J$28 -> Year 4 | J35: ='Master Data'!I$28 -> Year 3 | K35: ='Master Data'!J$28 -> Year 4
B36: Meter Type | D36: ='Master Data'!I$29 -> 2017-18 | E36: ='Master Data'!J$29 -> 2018-19 | G36: ='Master Data'!I$29 -> 2017-18 | H36: ='Master Data'!J$29 -> 2018-19 | J36: ='Master Data'!I$29 -> 2017-18 | K36: ='Master Data'!J$29 -> 2018-19
B37: =B24 -> Business LV - Single Phase | C37: =$J$98 -> 0.0349519333 | D37: =D$12*10^6*$C37/D64/D$20*'Master Data'!$B$45 -> 3.016654715 | E37: =E$12*10^6*$C37/E64/E$20*'Master Data'!$B$45 -> 3.085740265 | G37: =D37*D64*G$20/'Master Data'!$B$45/10^6 -> 0.2190486505 | H37: =E37*E64*H$20/'Master Data'!$B$45/10^6 -> 0.221362058 | J37: =(D37)*D$20/'Master Data'!$B$45 -> 11.01078971 | K37: =(E37)*E$20/'Master Data'!$B$45 -> 11.26295197
B38: =B25 -> Business LV - Multi Phase | C38: =$J$102 -> 0.0715469128 | D38: =D$12*10^6*$C38/D65/D$20*'Master Data'!$B$45 -> 6.652288327 | E38: =E$12*10^6*$C38/E65/E$20*'Master Data'!$B$45 -> 6.804715176 | G38: =D38*D65*G$20/'Master Data'!$B$45/10^6 -> 0.4483945011 | H38: =E38*E65*H$20/'Master Data'!$B$45/10^6 -> 0.4531300664 | J38: =(D38)*D$20/'Master Data'!$B$45 -> 24.28085239 | K38: =(E38)*E$20/'Master Data'!$B$45 -> 24.83721039
B39: Business LV - CT Meters | C39: =$J$106 -> 0.01165124147 | D39: =D$12*10^6*$C39/D66/D$20*'Master Data'!$B$45 -> 8.789748721 | E39: =E$12*10^6*$C39/E66/E$20*'Master Data'!$B$45 -> 8.989216987 | G39: =D39*D66*G$20/'Master Data'!$B$45/10^6 -> 0.07301995852 | H39: =E39*E66*H$20/'Master Data'!$B$45/10^6 -> 0.07379113386 | J39: =(D39)*D$20/'Master Data'!$B$45 -> 32.08258283 | K39: =(E39)*E$20/'Master Data'!$B$45 -> 32.810642
B40: Domestic LV - Single Phase | C40: =$J$110 -> 0.7189360304 | D40: =D$12*10^6*$C40/D67/D$20*'Master Data'!$B$45 -> 2.930858822 | E40: =E$12*10^6*$C40/E67/E$20*'Master Data'!$B$45 -> 2.997971328 | G40: =D40*D67*G$20/'Master Data'!$B$45/10^6 -> 4.505672573 | H40: =E40*E67*H$20/'Master Data'!$B$45/10^6 -> 4.553257694 | J40: =(D40)*D$20/'Master Data'!$B$45 -> 10.6976347 | K40: =(E40)*E$20/'Master Data'!$B$45 -> 10.94259535
B41: Domestic LV - Multi Phase | C41: =$J$114 -> 0.0566207095 | D41: =D$12*10^6*$C41/D68/D$20*'Master Data'!$B$45 -> 6.109800808 | E41: =E$12*10^6*$C41/E68/E$20*'Master Data'!$B$45 -> 6.249739013 | G41: =D41*D68*G$20/'Master Data'!$B$45/10^6 -> 0.3548498991 | H41: =E41*E68*H$20/'Master Data'!$B$45/10^6 -> 0.3585975251 | J41: =(D41)*D$20/'Master Data'!$B$45 -> 22.30077295 | K41: =(E41)*E$20/'Master Data'!$B$45 -> 22.8115474
B42: Domestic LV - CT Meters | C42: =$J$118 -> 0.0005684154312 | D42: =D$12*10^6*$C42/D69/D$20*'Master Data'!$B$45 -> 7.77675914 | E42: =E$12*10^6*$C42/E69/E$20*'Master Data'!$B$45 -> 7.95395795 | G42: =D42*D69*G$20/'Master Data'!$B$45/10^6 -> 0.003562338943 | H42: =E42*E69*H$20/'Master Data'!$B$45/10^6 -> 0.003599961368 | J42: =(D42)*D$20/'Master Data'!$B$45 -> 28.38517086 | K42: =(E42)*E$20/'Master Data'!$B$45 -> 29.03194652
B43: Other Meters | C43: =$J$121 -> 0.1057247571 | D43: =D$12*10^6*$C43/D70/D$20*'Master Data'!$B$45 -> 6.10715092 | E43: =E$12*10^6*$C43/E70/E$20*'Master Data'!$B$45 -> 6.246992978 | G43: =D43*D70*G$20/'Master Data'!$B$45/10^6 -> 0.6625918275 | H43: =E43*E70*H$20/'Master Data'!$B$45/10^6 -> 0.6695895647 | J43: =(D43)*D$20/'Master Data'!$B$45 -> 22.29110086 | K43: =(E43)*E$20/'Master Data'!$B$45 -> 22.80152437
C44: =SUM(C37:C43) -> 1 | G44: =SUM(G37:G43) -> 6.267139749 | H44: 6.333328004
F45: Check Calc | G45: =D12-G44 -> 0 | H45: =E12-H44 -> 0
D47: Total Price (cents) per register per day | G47: Revenue per Year ($m) | J47: Annual Cost both
C48: Capex weighting | D48: ='Master Data'!I$28 -> Year 3 | E48: ='Master Data'!J$28 -> Year 4 | G48: ='Master Data'!I$28 -> Year 3 | H48: ='Master Data'!J$28 -> Year 4 | J48: ='Master Data'!I$28 -> Year 3 | K48: ='Master Data'!J$28 -> Year 4
B49: Meter Type | D49: ='Master Data'!I$29 -> 2017-18 | E49: ='Master Data'!J$29 -> 2018-19 | G49: ='Master Data'!I$29 -> 2017-18 | H49: ='Master Data'!J$29 -> 2018-19 | J49: ='Master Data'!I$29 -> 2017-18 | K49: ='Master Data'!J$29 -> 2018-19
B50: =B37 -> Business LV - Single Phase | C50: =$J$98 -> 0.0349519333 | D50: =D24+D37 -> 6.105377999 | E50: 6.288111953 | G50: =G24+G37 -> 0.4433304232 | H50: =H24+H37 -> 0.4538961936 | J50: =(D50)*D$20/'Master Data'!$B$45 -> 22.2846297 | K50: =(E50)*E$20/'Master Data'!$B$45 -> 22.95160863
B51: =B38 -> Business LV - Multi Phase | C51: =$J$102 -> 0.0715469128 | D51: =D25+D38 -> 13.46350134 | E51: 13.86654419 | G51: =G25+G38 -> 0.907501249 | H51: 0.9291294734 | J51: =(D51)*D$20/'Master Data'!$B$45 -> 49.14177988 | K51: =(E51)*E$20/'Master Data'!$B$45 -> 50.6128863
B52: Business LV - CT Meters | C52: =$J$106 -> 0.01165124147 | D52: =D26+D39 -> 17.78948654 | E52: 18.32009675 | G52: =G26+G39 -> 0.1477843805 | H52: 0.1513064844 | J52: =(D52)*D$20/'Master Data'!$B$45 -> 64.93162587 | K52: =(E52)*E$20/'Master Data'!$B$45 -> 66.86835315
B53: Domestic LV - Single Phase | C53: =$J$110 -> 0.7189360304 | D53: =D27+D40 -> 5.931736528 | E53: 6.109265194 | G53: =G27+G40 -> 9.11898669 | H53: 9.336316959 | J53: =(D53)*D$20/'Master Data'!$B$45 -> 21.65083833 | K53: =(E53)*E$20/'Master Data'!$B$45 -> 22.29881796
B54: Domestic LV - Multi Phase | C54: =$J$114 -> 0.0566207095 | D54: =D28+D41 -> 12.36556615 | E54: 12.73568287 | G54: =G28+G41 -> 0.7181772432 | H54: 0.7352933613 | J54: =(D54)*D$20/'Master Data'!$B$45 -> 45.13431644 | K54: =(E54)*E$20/'Master Data'!$B$45 -> 46.48524248
B55: Domestic LV - CT Meters | C55: =$J$118 -> 0.0005684154312 | D55: =D29+D42 -> 15.73930683 | E55: 16.20948457 | G55: =G29+G42 -> 0.007209782974 | H55: 0.007381611723 | J55: =(D55)*D$20/'Master Data'!$B$45 -> 57.44846992 | K55: =(E55)*E$20/'Master Data'!$B$45 -> 59.16461867
B56: Other Meters | C56: =$J$121 -> 0.1057247571 | D56: =D30+D43 -> 12.36020307 | E56: 12.73012381 | G56: =G30+G43 -> 1.341013125 | H56: 1.372973117 | J56: =(D56)*D$20/'Master Data'!$B$45 -> 45.1147412 | K56: =(E56)*E$20/'Master Data'!$B$45 -> 46.46495192
C57: =SUM(C50:C56) -> 1 | G57: =SUM(G50:G56) -> 12.68400289 | H57: 12.9862972
F58: Check Calc | G58: =G57-D13 -> 0 | H58: =H57-E13 -> 0
D61: Volumes - with attrition of smart meter take up
D62: ='Master Data'!I$28 -> Year 3 | E62: ='Master Data'!J$28 -> Year 4
B63: Meter Type | D63: ='Master Data'!I$29 -> 2017-18 | E63: ='Master Data'!J$29 -> 2018-19
B64: =B37 -> Business LV - Single Phase | D64: ='Volume Trending'!Q56 -> 19894 | E64: ='Volume Trending'!R56 -> 19654
B65: Business LV - Multi Phase | D65: ='Volume Trending'!Q60 -> 18467 | E65: ='Volume Trending'!R60 -> 18244
B66: Business LV - CT Meters | D66: ='Volume Trending'!Q64 -> 2276 | E66: ='Volume Trending'!R64 -> 2249
B67: Domestic LV - Single Phase | D67: ='Volume Trending'!Q68 -> 421184 | E67: ='Volume Trending'!R68 -> 416104
B68: Domestic LV - Multi Phase | D68: ='Volume Trending'!Q72 -> 15912 | E68: ='Volume Trending'!R72 -> 15720
B69: Domestic LV - CT Meters | D69: ='Volume Trending'!Q76 -> 125.5 | E69: ='Volume Trending'!R76 -> 124
B70: Other Meters | D70: ='Volume Trending'!Q82 -> 29724.5 | E70: ='Volume Trending'!R82 -> 29366
D71: =SUM(D64:D70) -> 507583 | E71: 501461
D72: =D71-'Volume Trending'!Q84 -> 0 | E72: =E71-'Volume Trending'!R84 -> 0
D74: Volumes - with no attrition for unavoidable costs
D75: ='Master Data'!I$28 -> Year 3 | E75: ='Master Data'!J$28 -> Year 4
D76: ='Master Data'!I$29 -> 2017-18 | E76: ='Master Data'!J$29 -> 2018-19
B77: =B64 -> Business LV - Single Phase | D77: =D64 -> 19894 | E77: =D77 -> 19894
B78: =B65 -> Business LV - Multi Phase | D78: =D65 -> 18467 | E78: =D78 -> 18467
B79: Business LV - CT Meters | D79: 2276 | E79: =D79 -> 2276
B80: Domestic LV - Single Phase | D80: 421184 | E80: =D80 -> 421184
B81: Domestic LV - Multi Phase | D81: 15912 | E81: =D81 -> 15912
B82: Domestic LV - CT Meters | D82: 125.5 | E82: =D82 -> 125.5
B83: Other Meters | D83: 29724.5 | E83: =D83 -> 29724.5
D84: =SUM(D77:D83) -> 507583 | E84: 507583
B93: Meter Type | C93: Meter Volumes | F93: Unit Prices | G93: Meter Type | I93: Weighted cost | J93: Weighting of total cost | K93: Prior splits if required to step chanage for data annomilies
B94: Weighting of costs based on calcualted value of the assets | K94: 2011/12 split
B96: Business LV - Single Phase | C96: ='Volume Trending'!I6 -> 18205 | F96: ='Unit Costs'!D$82 -> 168.8358508 | G96: Mechanical | I96: =C96*F96 -> 3073656.663
B97: Business LV - Single Phase | C97: ='Volume Trending'!I7 -> 3928 | F97: ='Unit Costs'!D$81 -> 269.354 | G97: Electronic | I97: =C97*F97 -> 1058022.512
C98: =SUM(C96:C97) -> 22133 | I98: =SUBTOTAL(9,I96:I97) -> 4131679.175 | J98: =I98/$I$123 -> 0.0349519333
B100: Business LV - Multi Phase | C100: ='Volume Trending'!I11 -> 7509 | F100: ='Unit Costs'!D$84 -> 388.5122902 | G100: Mechanical | I100: =C100*F100 -> 2917338.787
B101: Business LV - Multi Phase | C101: ='Volume Trending'!I12 -> 12929 | F101: ='Unit Costs'!D$83 -> 428.513 | G101: Electronic | I101: =C101*F101 -> 5540244.577
C102: =SUM(C100:C101) -> 20438 | I102: =SUBTOTAL(9,I100:I101) -> 8457583.364 | J102: =I102/$I$123 -> 0.0715469128
B104: Business LV - CT Meters | C104: ='Volume Trending'!I16 -> 602 | F104: ='Unit Costs'!D$86 -> 388.5122902 | G104: Mechanical | H104: =C104*F104 -> 233884.3987 | I104: =$H$106*K104*$J$104 -> 270526.8549 | J104: 1.1 | K104: 0.2119521912
B105: Business LV - CT Meters | C105: ='Volume Trending'!I17 -> 1645 | F105: ='Unit Costs'!D$85 -> 563.186 | G105: Electronic | H105: =C105*F105 -> 926440.97 | I105: =$H$106*K105*$J$104 -> 1106770.112 | K105: 0.8671314741
C106: =SUM(C104:C105) -> 2247 | H106: =SUBTOTAL(9,H104:H105) -> 1160325.369 | I106: =SUBTOTAL(9,I104:I105) -> 1377296.967 | J106: =I106/$I$123 -> 0.01165124147
B108: Domestic LV - Single Phase | C108: ='Volume Trending'!I21 -> 259105 | F108: ='Unit Costs'!D$82 -> 168.8358508 | G108: Mechanical | I108: =C108*F108 -> 43746213.11
B109: Domestic LV - Single Phase | C109: ='Volume Trending'!I22 -> 153105 | F109: ='Unit Costs'!D$81 -> 269.354 | G109: Electronic | I109: =C109*F109 -> 41239444.17
C110: =SUM(C108:C109) -> 412210 | I110: =SUBTOTAL(9,I108:I109) -> 84985657.28 | J110: =I110/$I$123 -> 0.7189360304
B112: Domestic LV - Multi Phase | C112: ='Volume Trending'!I26 -> 5700 | F112: ='Unit Costs'!D$84 -> 388.5122902 | G112: Mechanical | H112: =C112*F112 -> 2214520.054 | I112: =$H$114*K112*$J$112 -> 3237813.984 | J112: 1 | K112: 0.5367602063
B113: Domestic LV - Multi Phase | C113: ='Volume Trending'!I27 -> 8909 | F113: ='Unit Costs'!D$83 -> 428.513 | G113: Electronic | H113: =C113*F113 -> 3817622.317 | I113: =$H$114*K113*$J$112 -> 3455338.132 | K113: 0.5728210508
C114: =SUM(C112:C113) -> 14609 | H114: =SUBTOTAL(9,H112:H113) -> 6032142.371 | I114: =SUBTOTAL(9,I112:I113) -> 6693152.115 | J114: =I114/$I$123 -> 0.0566207095
B116: Domestic LV - CT Meters | C116: ='Volume Trending'!I31 -> 82 | F116: ='Unit Costs'!D$86 -> 388.5122902 | G116: Mechanical | H116: =C116*F116 -> 31858.0078 | I116: =$H$118*K116*$J$116 -> 23670.10963 | J116: 1.6 | K116: 0.3522727273
B117: Domestic LV - CT Meters | C117: ='Volume Trending'!I32 -> 18 | F117: ='Unit Costs'!D$85 -> 563.186 | G117: Electronic | H117: =C117*F117 -> 10137.348 | I117: =$H$118*K117*$J$116 -> 43522.45965 | K117: 0.6477272727
C118: =SUM(C116:C117) -> 100 | H118: =SUBTOTAL(9,H116:H117) -> 41995.3558 | I118: =SUBTOTAL(9,I116:I117) -> 67192.56928 | J118: =I118/$I$123 -> 0.0005684154312
B120: Other Meters -PAYG | C120: ='Volume Trending'!I36 -> 30382 | F120: ='Unit Costs'!D$87 -> 411.354 | I120: =C120*F120 -> 12497757.23
I121: =SUBTOTAL(9,I120:I120) -> 12497757.23 | J121: =I121/$I$123 -> 0.1057247571
I123: =SUBTOTAL(9,I96:I122) -> 118210318.7

Sheet Volume Trending
M1: 1000 | Q1: Number of Registers after Smart Meter take up | S1: Take up Smart metes. Assumed all Customers will convert within 7 years
E2: Volumes - Registers | M2: 2500 | P2: New Connections | S2: Number of Registers changed to Smart Meters (only 1 register per smart meter)
D3: Meter Asset Class | E3: Previous Determination | H3: Unknown | I3: Current | J3: Annual change | K3: Forecast Volumes | M3: 0 | N3: Register to Meters ratio | P3: Replace Con | Q3: =10000/2 -> 5000 | R3: 10000 | S3: Rounding | T3: =Q3 -> 5000 | U3: =R3 -> 10000 | W3: Meter Trending volumes for Reset RIN
E4: ='Master Data'!B29 -> 2010-11 | F4: ='Master Data'!C29 -> 2011-12 | G4: ='Master Data'!D29 -> 2012-13 | H4: ='Master Data'!E29 -> 2013-14 | I4: ='Master Data'!F29 -> 2014-15 | J4: 4 | K4: ='Master Data'!G29 -> 2015-16 | L4: ='Master Data'!H29 -> 2016-17 | M4: Jul - Dec 17 | Q4: ='Master Data'!I$29 -> 2017-18 | R4: ='Master Data'!J$29 -> 2018-19 | T4: ='Master Data'!I$29 -> 2017-18 | U4: ='Master Data'!J$29 -> 2018-19 | W4: =I4 -> 2014-15 | X4: =K4 -> 2015-16 | Y4: =L4 -> 2016-17 | Z4: =Q4 -> 2017-18 | AA4: =R4 -> 2018-19
B6: Business LV - Single Phase | C6: LV - Single Phase | D6: Mechanical | E6: 22981 | F6: 22981 | G6: 22981 | I6: ='Registar data Pivot'!C11 -> 18205 | J6: =ROUND((I6-E6)/$J$4,0) -> -1194 | K6: =I6+J6 -> 17011 | L6: =K6+J6 -> 15817 | M6: =L6-(ROUND(L9/$L$45*$M$2,0)) -> 15719 | N6: 1 | P6: =M6/N6 -> 15719 | Q6: =M6-ROUND((($P6/$P$45)*Q$3),0)*N6 -> 15534 | R6: =Q6-ROUND((($P6/$P$45)*R$3),0)*$N6 -> 15164 | T6: =Q6-M6 -> -185 | U6: =R6-Q6 -> -370 | W6: =I6/$N6 -> 18205 | X6: =K6/$N6 -> 17011 | Y6: =L6/$N6 -> 15817 | Z6: =Q6/$N6 -> 15534 | AA6: =R6/$N6 -> 15164
B7: Business LV - Single Phase | C7: LV - Single Phase | D7: Electronic | E7: 2750 | F7: 2750 | G7: 2750 | I7: ='Registar data Pivot'!D11 -> 3928 | J7: =ROUND((I7-E7)/$J$4,0) -> 295 | K7: =I7+J7 -> 4223 | L7: =K7+J7 -> 4518 | M7: =SUM(L7)+(ROUND(L9/$L$45*$M$2,0))+(ROUND(L9/$L$45*$M$1,0)) -> 4655 | N7: 1 | P7: =M7/N7 -> 4655 | Q7: =M7-ROUND((($P7/$P$45)*Q$3),0)*N7 -> 4600 | R7: 4490 | T7: =Q7-M7 -> -55 | U7: =R7-Q7 -> -110 | W7: =I7/$N7 -> 3928 | X7: =K7/$N7 -> 4223 | Y7: =L7/$N7 -> 4518 | Z7: =Q7/$N7 -> 4600 | AA7: =R7/$N7 -> 4490
B8: Business LV - Single Phase | C8: LV - Single Phase | D8: Smart | M8: =(ROUND(L9/$L$45*$M$3,0)) -> 0 | Q8: =M8-ROUND((($P8/$P$45)*Q$3),0)*N8 -> 0 | R8: =Q8-ROUND((($P8/$P$45)*R$3),0)*$N8 -> 0 | T8: =Q8-M8 -> 0 | U8: =R8-Q8 -> 0
E9: =SUM(E6:E7) -> 25731 | F9: =SUM(F6:F7) -> 25731 | G9: 25731 | H9: 0 | I9: =SUM(I6:I7) -> 22133 | J9: =SUM(J6:J7) -> -899 | K9: 21234 | L9: 20335 | M9: =SUM(M6:M8) -> 20374 | P9: =SUM(P6:P8) -> 20374 | Q9: =SUM(Q6:Q8) -> 20134 | R9: 19654 | T9: =SUM(T6:T8) -> -240 | U9: =SUM(U6:U8) -> -480 | W9: =SUM(W6:W8) -> 22133 | X9: =SUM(X6:X8) -> 21234 | Y9: =SUM(Y6:Y8) -> 20335 | Z9: 20134 | AA9: 19654
B11: Business LV - Multi Phase | C11: LV - Multi Phase | D11: Mechanical | E11: 15311 | F11: 14571 | G11: 13371 | I11: ='Registar data Pivot'!C12 -> 7509 | J11: =ROUND((I11-E11)/$J$4,0) -> -1951 | K11: =I11+J11 -> 5558 | L11: =K11+J11 -> 3607 | M11: =L11-(ROUND(L14/$L$45*$M$2,0)) -> 3516 | N11: 1 | P11: =M11/N11 -> 3516 | Q11: =M11-ROUND((($P11/$P$45)*Q$3),0)*N11 -> 3475 | R11: =Q11-ROUND((($P11/$P$45)*R$3),0)*$N11 -> 3392 | T11: =Q11-M11 -> -41 | U11: =R11-Q11 -> -83 | W11: =I11/$N11 -> 7509 | X11: =K11/$N11 -> 5558 | Y11: =L11/$N11 -> 3607 | Z11: =Q11/$N11 -> 3475 | AA11: =R11/$N11 -> 3392
B12: Business LV - Multi Phase | C12: LV - Multi Phase | D12: Electronic | E12: 8249 | F12: 10194 | G12: 12544 | I12: ='Registar data Pivot'!D12 -> 12929 | J12: 1170 | K12: =I12+J12 -> 14099 | L12: =K12+J12 -> 15269 | M12: =SUM(L12)+(ROUND(L14/$L$45*$M$2,0))+(ROUND(L14/$L$45*$M$1,0)) -> 15396 | N12: 1 | P12: 15396 | Q12: 15215 | R12: 14852 | T12: =Q12-M12 -> -181 | U12: =R12-Q12 -> -363 | W12: =I12/$N12 -> 12929 | X12: =K12/$N12 -> 14099 | Y12: =L12/$N12 -> 15269 | Z12: =Q12/$N12 -> 15215 | AA12: =R12/$N12 -> 14852
B13: Business LV - Multi Phase | C13: LV - Multi Phase | D13: Smart | M13: =(ROUND(L14/$L$45*$M$3,0)) -> 0 | Q13: =M13-ROUND((($P13/$P$45)*Q$3),0)*N13 -> 0 | R13: =Q13-ROUND((($P13/$P$45)*R$3),0)*$N13 -> 0 | T13: =Q13-M13 -> 0 | U13: =R13-Q13 -> 0
E14: =SUM(E11:E12) -> 23560 | F14: =SUM(F11:F12) -> 24765 | G14: 25915 | H14: 0 | I14: =SUM(I11:I12) -> 20438 | J14: =SUM(J11:J12) -> -781 | K14: 19657 | L14: 18876 | M14: =SUM(M11:M13) -> 18912 | P14: =SUM(P11:P13) -> 18912 | Q14: =SUM(Q11:Q13) -> 18690 | R14: =SUM(R11:R13) -> 18244 | T14: =SUM(T11:T13) -> -222 | U14: =SUM(U11:U13) -> -446 | W14: =SUM(W11:W13) -> 20438 | X14: =SUM(X11:X13) -> 19657 | Y14: =SUM(Y11:Y13) -> 18876 | Z14: 18690 | AA14: 18244
B16: Business LV - CT Meters | C16: LV - CT Meters | D16: Mechanical | E16: 808 | F16: 808 | G16: 732 | I16: ='Registar data Pivot'!C13 -> 602 | J16: =ROUND((I16-E16)/$J$4,0) -> -52 | K16: =I16+J16 -> 550 | L16: =K16+J16 -> 498 | M16: =L16-(ROUND(L19/$L$45*$M$2,0)) -> 487 | N16: 1 | P16: =M16/N16 -> 487 | Q16: =M16-ROUND((($P16/$P$45)*Q$3),0)*N16 -> 481 | R16: =Q16-ROUND((($P16/$P$45)*R$3),0)*$N16 -> 470 | T16: =Q16-M16 -> -6 | U16: =R16-Q16 -> -11 | W16: =I16/$N16 -> 602 | X16: =K16/$N16 -> 550 | Y16: =L16/$N16 -> 498 | Z16: =Q16/$N16 -> 481 | AA16: =R16/$N16 -> 470
B17: Business LV - CT Meters | C17: LV - CT Meters | D17: Electronic | E17: 1278 | F17: 1478 | G17: 1754 | I17: ='Registar data Pivot'!D13 -> 1645 | J17: 92 | K17: =I17+J17 -> 1737 | L17: =K17+J17 -> 1829 | M17: =SUM(L17)+(ROUND(L19/$L$45*$M$2,0))+(ROUND(L19/$L$45*$M$1,0)) -> 1844 | N17: 1 | P17: 1844 | Q17: =M17-ROUND((($P17/$P$45)*Q$3),0)*N17 -> 1822 | R17: 1779 | T17: =Q17-M17 -> -22 | U17: =R17-Q17 -> -43 | W17: =I17/$N17 -> 1645 | X17: =K17/$N17 -> 1737 | Y17: =L17/$N17 -> 1829 | Z17: =Q17/$N17 -> 1822 | AA17: =R17/$N17 -> 1779
B18: Business LV - CT Meters | C18: LV - CT Meters | D18: Smart | M18: =(ROUND(L19/$L$45*$M$3,0)) -> 0 | Q18: =M18-ROUND((($P18/$P$45)*Q$3),0)*N18 -> 0 | R18: =Q18-ROUND((($P18/$P$45)*R$3),0)*$N18 -> 0 | T18: =Q18-M18 -> 0 | U18: =R18-Q18 -> 0
E19: =SUM(E16:E17) -> 2086 | F19: =SUM(F16:F17) -> 2286 | G19: 2486 | H19: 0 | I19: =SUM(I16:I17) -> 2247 | J19: =SUM(J16:J17) -> 40 | K19: 2287 | L19: 2327 | M19: =SUM(M16:M18) -> 2331 | P19: =SUM(P16:P18) -> 2331 | Q19: =SUM(Q16:Q18) -> 2303 | R19: =SUM(R16:R18) -> 2249 | T19: =SUM(T16:T18) -> -28 | U19: =SUM(U16:U18) -> -54 | W19: =SUM(W16:W18) -> 2247 | X19: =SUM(X16:X18) -> 2287 | Y19: =SUM(Y16:Y18) -> 2327 | Z19: 2303 | AA19: 2249
B21: Domestic LV - Single Phase | C21: LV - Single Phase | D21: Mechanical | E21: 291517 | F21: 274697 | G21: 268777 | I21: ='Registar data Pivot'!C8 -> 259105 | J21: =ROUND((I21-E21)/$J$4,0) -> -8103 | K21: =I21+J21 -> 251002 | L21: =K21+J21 -> 242899 | M21: =L21-(ROUND(L24/$L$45*$M$2,0)) -> 240825 | N21: 1 | P21: =M21/N21 -> 240825 | Q21: =M21-ROUND((($P21/$P$45)*Q$3),0)*N21 -> 237989 | R21: =Q21-ROUND((($P21/$P$45)*R$3),0)*$N21 -> 232317 | T21: =Q21-M21 -> -2836 | U21: =R21-Q21 -> -5672 | W21: =I21/$N21 -> 259105 | X21: =K21/$N21 -> 251002 | Y21: =L21/$N21 -> 242899 | Z21: =Q21/$N21 -> 237989 | AA21: =R21/$N21 -> 232317
B22: Domestic LV - Single Phase | C22: LV - Single Phase | D22: Electronic | E22: 84087 | F22: 106227 | G22: 118077 | I22: ='Registar data Pivot'!D8 -> 153105 | J22: 17255 | K22: =I22+J22 -> 170360 | L22: =K22+J22 -> 187615 | M22: =SUM(L22)+(ROUND(L24/$L$45*$M$2,0))+(ROUND(L24/$L$45*$M$1,0)) -> 190519 | N22: 2 | P22: 95259.5 | Q22: =M22-ROUND((($P22/$P$45)*Q$3),0)*N22 -> 188275 | R22: 183787 | T22: =Q22-M22 -> -2244 | U22: =R22-Q22 -> -4488 | W22: =I22/$N22 -> 76552.5 | X22: =K22/$N22 -> 85180 | Y22: =L22/$N22 -> 93807.5 | Z22: =Q22/$N22 -> 94137.5 | AA22: =R22/$N22 -> 91893.5
B23: Domestic LV - Single Phase | C23: LV - Single Phase | D23: Smart | M23: =(ROUND(L24/$L$45*$M$3,0)) -> 0 | Q23: =M23-ROUND((($P23/$P$45)*Q$3),0)*N23 -> 0 | R23: =Q23-ROUND((($P23/$P$45)*R$3),0)*$N23 -> 0 | T23: =Q23-M23 -> 0 | U23: =R23-Q23 -> 0
E24: =SUM(E21:E22) -> 375604 | F24: =SUM(F21:F22) -> 380924 | G24: 386854 | H24: 0 | I24: =SUM(I21:I22) -> 412210 | J24: =SUM(J21:J22) -> 9152 | K24: 421362 | L24: 430514 | M24: =SUM(M21:M23) -> 431344 | P24: =SUM(P21:P23) -> 336084.5 | Q24: =SUM(Q21:Q23) -> 426264 | R24: =SUM(R21:R23) -> 416104 | T24: =SUM(T21:T23) -> -5080 | U24: =SUM(U21:U23) -> -10160 | W24: =SUM(W21:W23) -> 335657.5 | X24: =SUM(X21:X23) -> 336182 | Y24: =SUM(Y21:Y23) -> 336706.5 | Z24: 332126.5 | AA24: 324210.5
B26: Domestic LV - Multi Phase | C26: LV - Multi Phase | D26: Mechanical | E26: 6140 | F26: 6140 | G26: 6140 | I26: ='Registar data Pivot'!C9 -> 5700 | J26: =ROUND((I26-E26)/$J$4,0) -> -110 | K26: =I26+J26 -> 5590 | L26: =K26+J26 -> 5480 | M26: =L26-(ROUND(L29/$L$45*$M$2,0)) -> 5402 | N26: 1 | P26: =M26/N26 -> 5402 | Q26: =M26-ROUND((($P26/$P$45)*Q$3),0)*N26 -> 5338 | R26: =Q26-ROUND((($P26/$P$45)*R$3),0)*$N26 -> 5211 | T26: =Q26-M26 -> -64 | U26: =R26-Q26 -> -127 | W26: =I26/$N26 -> 5700 | X26: =K26/$N26 -> 5590 | Y26: =L26/$N26 -> 5480 | Z26: =Q26/$N26 -> 5338 | AA26: =R26/$N26 -> 5211
B27: Domestic LV - Multi Phase | C27: LV - Multi Phase | D27: Electronic | E27: 5158 | F27: 5158 | G27: 5158 | I27: ='Registar data Pivot'!D9 -> 8909 | J27: 938 | K27: =I27+J27 -> 9847 | L27: =K27+J27 -> 10785 | M27: =SUM(L27)+(ROUND(L29/$L$45*$M$2,0))+(ROUND(L29/$L$45*$M$1,0)) -> 10894 | N27: 1 | P27: =M27/N27 -> 10894 | Q27: =M27-ROUND((($P27/$P$45)*Q$3),0)*N27 -> 10766 | R27: 10509 | T27: =Q27-M27 -> -128 | U27: =R27-Q27 -> -257 | W27: =I27/$N27 -> 8909 | X27: =K27/$N27 -> 9847 | Y27: =L27/$N27 -> 10785 | Z27: =Q27/$N27 -> 10766 | AA27: =R27/$N27 -> 10509
B28: Domestic LV - Multi Phase | C28: LV - Multi Phase | D28: Smart | M28: =(ROUND(L29/$L$45*$M$3,0)) -> 0 | Q28: =M28-ROUND((($P28/$P$45)*Q$3),0)*N28 -> 0 | R28: =Q28-ROUND((($P28/$P$45)*R$3),0)*$N28 -> 0 | T28: =Q28-M28 -> 0 | U28: =R28-Q28 -> 0
E29: =SUM(E26:E27) -> 11298 | F29: =SUM(F26:F27) -> 11298 | G29: 11298 | H29: 0 | I29: =SUM(I26:I27) -> 14609 | J29: =SUM(J26:J27) -> 828 | K29: 15437 | L29: 16265 | M29: =SUM(M26:M28) -> 16296 | P29: =SUM(P26:P28) -> 16296 | Q29: =SUM(Q26:Q28) -> 16104 | R29: =SUM(R26:R28) -> 15720 | T29: =SUM(T26:T28) -> -192 | U29: =SUM(U26:U28) -> -384 | W29: =SUM(W26:W28) -> 14609 | X29: =SUM(X26:X28) -> 15437 | Y29: =SUM(Y26:Y28) -> 16265 | Z29: 16104 | AA29: 15720
B31: Domestic LV - CT Meters | C31: LV - CT Meters | D31: Mechanical | E31: 18 | F31: 18 | G31: 18 | I31: ='Registar data Pivot'!C10 -> 82 | J31: =ROUND((I31-E31)/$J$4,0) -> 16 | K31: =I31+J31 -> 98 | L31: =K31+J31 -> 114 | M31: =L31-(ROUND(L34/$L$45*$M$2,0)) -> 113 | N31: 1 | P31: =M31/N31 -> 113 | Q31: =M31-ROUND((($P31/$P$45)*Q$3),0)*N31 -> 112 | R31: =Q31-ROUND((($P31/$P$45)*R$3),0)*$N31 -> 109 | T31: =Q31-M31 -> -1 | U31: =R31-Q31 -> -3 | W31: =I31/$N31 -> 82 | X31: =K31/$N31 -> 98 | Y31: =L31/$N31 -> 114 | Z31: =Q31/$N31 -> 112 | AA31: =R31/$N31 -> 109
B32: Domestic LV - CT Meters | C32: LV - CT Meters | D32: Electronic | E32: 26 | F32: 26 | G32: 26 | I32: ='Registar data Pivot'!D10 -> 18 | J32: -2 | K32: =I32+J32 -> 16 | L32: =K32+J32 -> 14 | M32: =SUM(L32)+(ROUND(L34/$L$45*$M$2,0))+(ROUND(L34/$L$45*$M$1,0)) -> 15 | N32: 1 | P32: 15 | Q32: =M32-ROUND((($P32/$P$45)*Q$3),0)*N32 -> 15 | R32: 15 | T32: =Q32-M32 -> 0 | U32: =R32-Q32 -> 0 | W32: =I32/$N32 -> 18 | X32: =K32/$N32 -> 16 | Y32: =L32/$N32 -> 14 | Z32: =Q32/$N32 -> 15 | AA32: =R32/$N32 -> 15
B33: Domestic LV - CT Meters | C33: LV - CT Meters | D33: Smart | M33: =(ROUND(L34/$L$45*$M$3,0)) -> 0 | Q33: =M33-ROUND((($P33/$P$45)*Q$3),0)*N33 -> 0 | R33: =Q33-ROUND((($P33/$P$45)*R$3),0)*$N33 -> 0 | T33: =Q33-M33 -> 0 | U33: =R33-Q33 -> 0
E34: =SUM(E31:E32) -> 44 | F34: =SUM(F31:F32) -> 44 | G34: 44 | H34: 0 | I34: =SUM(I31:I32) -> 100 | J34: =SUM(J31:J32) -> 14 | K34: 114 | L34: 128 | M34: =SUM(M31:M33) -> 128 | P34: =SUM(P31:P33) -> 128 | Q34: =SUM(Q31:Q33) -> 127 | R34: =SUM(R31:R33) -> 124 | T34: =SUM(T31:T33) -> -1 | U34: =SUM(U31:U33) -> -3 | W34: =SUM(W31:W33) -> 100 | X34: =SUM(X31:X33) -> 114 | Y34: =SUM(Y31:Y33) -> 128 | Z34: 127 | AA34: 124
B36: Other Meters | C36: PAYG | D36: Electronic | E36: 950 | F36: 950 | G36: 950 | I36: ='Registar data Pivot'!D14 -> 30382 | K36: =I36+J36 -> 30382 | L36: =K36+J36 -> 30382 | M36: =SUM(L36)+(ROUND(L44/$L$45*$M$1,0)) -> 30441 | N36: 1 | P36: =M36/N36 -> 30441 | Q36: =M36-ROUND((($P36/$P$45)*Q$3),0)*N36 -> 30083 | R36: =Q36-ROUND((($P36/$P$45)*R$3),0)*$N36 -> 29366 | T36: =Q36-M36 -> -358 | U36: =R36-Q36 -> -717 | W36: =I36/$N36 -> 30382 | X36: =K36/$N36 -> 30382 | Y36: =L36/$N36 -> 30382 | Z36: =Q36/$N36 -> 30083 | AA36: =R36/$N36 -> 29366
B37: Business LV - Single Phase | C37: LV - Single Phase - Remote Read | D37: Smart | M37: =(ROUND(L36/$L$45*$M$3,0)) -> 0 | Q37: =M37-ROUND((($P37/$P$45)*Q$3),0)*N37 -> 0 | R37: =Q37-ROUND((($P37/$P$45)*R$3),0)*$N37 -> 0
B38: Business LV - Single Phase | C38: LV - Single Phase - Remote Read | D38: Electronic | E38: 1 | F38: 1 | G38: 1 | I38: 0
B39: Business LV - Multi Phase | C39: LV - Multi Phase - Remote Read | D39: Electronic | E39: 1 | F39: 1 | G39: 1 | I39: 0
B40: Business LV - CT Meters | C40: LV - CT Meters - Remote Read | D40: Electronic | E40: 1 | F40: 1 | G40: 1 | I40: 0
B41: Domestic LV - Single Phase | C41: LV - Single Phase - Remote Read | D41: Electronic | E41: 1 | F41: 1 | G41: 1 | I41: 0
B42: Domestic LV - Multi Phase | C42: LV - Multi Phase - Remote Read | D42: Electronic | E42: 1 | F42: 1 | G42: 1 | I42: 0
B43: Domestic LV - CT Meters | C43: LV - CT Meters - Remote Read | D43: Electronic | E43: 1 | F43: 1 | G43: 1 | I43: 0
E44: =SUM(E36:E43) -> 956 | F44: =SUM(F36:F43) -> 956 | G44: 956 | H44: 0 | I44: =SUM(I36:I43) -> 30382 | J44: =SUM(J36:J43) -> 0 | K44: =SUM(K36:K43) -> 30382 | L44: 30382 | M44: =SUM(M36:M43) -> 30441 | P44: 30441 | Q44: =SUM(Q36:Q43) -> 30083 | R44: =SUM(R36:R43) -> 29366 | T44: =SUM(T36:T43) -> -358 | U44: =SUM(U36:U43) -> -717 | W44: =SUM(W36:W43) -> 30382 | X44: =SUM(X36:X43) -> 30382 | Y44: =SUM(Y36:Y43) -> 30382 | Z44: 30083 | AA44: 29366
B45: Total | E45: =E9+E14+E19+E24+E29+E34+E44 -> 439279 | F45: =F9+F14+F19+F24+F29+F34+F44 -> 446004 | G45: 453284 | H45: 0 | I45: =I9+I14+I19+I24+I29+I34+I44 -> 502119 | J45: =J9+J14+J19+J24+J29+J34+J44 -> 8354 | K45: =K9+K14+K19+K24+K29+K34+K44 -> 510473 | L45: 518827 | M45: =M9+M14+M19+M24+M29+M34+M44 -> 519826 | P45: 424566.5 | Q45: =Q9+Q14+Q19+Q24+Q29+Q34+Q44 -> 513705 | R45: =R9+R14+R19+R24+R29+R34+R44 -> 501461 | T45: =T9+T14+T19+T24+T29+T34+T44 -> -6121 | U45: =U9+U14+U19+U24+U29+U34+U44 -> -12244 | W45: =W9+W14+W19+W24+W29+W34+W44 -> 425566.5 | X45: =X9+X14+X19+X24+X29+X34+X44 -> 425293 | Y45: =Y9+Y14+Y19+Y24+Y29+Y34+Y44 -> 425019.5 | Z45: 419567.5 | AA45: 409567.5
M46: =M45-L45 -> 999 | P46: Check Calculation | Q46: =M45-Q45 -> 6121 | R46: =Q45-R45 -> 12244 | T46: =Q45-M45=T45 -> TRUE | U46: =R45-Q45=U45 -> TRUE | Z46: 396000
H47: LV - Single Phase | I47: =SUMIF($C$5:$C$45,$H47,I$5:I$45) -> 434343 | K47: Mechanical | L47: =SUMIF($D$5:$D$45,$K47,L$5:L$45) -> 268415 | M47: =SUMIF($D$5:$D$45,$K47,M$5:M$45) -> 266062 | P47: Check Calculation | Q47: =(M45-Q45+Q2)=-T45 -> TRUE | R47: =(Q45-R45)=-U45 -> TRUE
H48: LV - Multi Phase | I48: =SUMIF($C$5:$C$45,$H48,I$5:I$45) -> 35047 | K48: Electronic | L48: =SUMIF($D$5:$D$45,$K48,$L$5:$L$45) -> 250412 | M48: =SUMIF($D$5:$D$45,$K48,M$5:M$45) -> 253764 | V48: LV - Single Phase | W48: =SUMIF($C$5:$C$45,$V48,W$5:W$45)+W51 -> 388172.5 | X48: =SUMIF($C$5:$C$45,$V48,X$5:X$45)+X51 -> 387798 | Y48: =SUMIF($C$5:$C$45,$V48,Y$5:Y$45)+Y51 -> 387423.5 | Z48: =SUMIF($C$5:$C$45,$V48,Z$5:Z$45)+Z51 -> 382343.5 | AA48: =SUMIF($C$5:$C$45,$V48,AA$5:AA$45)+AA51 -> 373230.5
H49: LV - CT Meters | I49: =SUMIF($C$5:$C$45,$H49,I$5:I$45) -> 2347 | K49: Smart | L49: =SUMIF($D$5:$D$45,$K49,$L$5:$L$45) -> 0 | M49: =SUMIF($D$5:$D$45,$K49,M$5:M$45) -> 0 | V49: LV - Multi Phase | W49: =SUMIF($C$5:$C$45,$V49,W$5:W$45) -> 35047 | X49: 35094 | Y49: 35141 | Z49: 34794 | AA49: 33964
H50: PAYG | I50: =SUMIF($C$5:$C$45,$H50,I$5:I$45) -> 30382 | L50: =SUM(L47:L49) -> 518827 | M50: =SUM(M47:M49) -> 519826 | V50: LV - CT Meters | W50: 2347 | X50: 2401 | Y50: 2455 | Z50: 2430 | AA50: 2373
I51: =SUM(I47:I50) -> 502119 | M51: =M50-L50 -> 999 | V51: PAYG | W51: 30382 | X51: 30382 | Y51: 30382 | Z51: 30083 | AA51: 29366
B52: Volume Assumptions | P52: =I4 -> 2014-15 | Q52: 2 yr Average | R52: 2 yr Average
B53: Based on previous averages there are 2,000 new connections each year, 5,000 meter replacements carried out by TasNetworks for old meters and 5,000 alterations that are customer driven (solar for example) . Therefore there are around 12,000 normal meter changes annually, 10,000 of which are replacements of TasNetworks regulated meters. | M53: Business LV - Single Phase | N53: Mechanical | P53: =AVERAGE(I6,K6) -> 17608 | Q53: =AVERAGE(Q6:R6) -> 15349 | R53: =AVERAGE(R6:R6) -> 15164
N54: Electronic | Q54: =AVERAGE(Q7:R7) -> 4545 | R54: =AVERAGE(R7:R7) -> 4490
N55: Smart | Q55: =AVERAGE(Q8:R8) -> 0 | R55: =AVERAGE(R8:R8) -> 0
B56: During the period of July 2017 & December 2017 TasNetworks is assumed to not perform any replacements because of the rule change for meters. It is assumed that there will be the same level of new connections and customer driven alterations resulting in 1,000 new connections and 2,500 alterations. | Q56: =SUM(Q53:Q55) -> 19894 | R56: =SUM(R53:R55) -> 19654
M57: Business LV - Multi Phase | N57: Mechanical | Q57: =AVERAGE(Q11:R11) -> 3433.5 | R57: =AVERAGE(R11:R11) -> 3392
N58: Electronic | Q58: 15033.5 | R58: =AVERAGE(R12:R12) -> 14852
B59: For the second half of 2017/18 and future years the same level of 10,000 regulated meters being replaced annually is assumed to continue. For this scenario there is no accelerated take up given the smart meter is more expensive resulting in little incentive for customers to move. | N59: Smart | Q59: 0 | R59: =AVERAGE(R13:R13) -> 0
Q60: =SUM(Q57:Q59) -> 18467 | R60: =SUM(R57:R59) -> 18244
M61: Business LV - CT Meters | N61: Mechanical | Q61: =AVERAGE(Q16:R16) -> 475.5 | R61: =AVERAGE(R16:R16) -> 470
B62: The take up and alterations have been evenly spread across the various meter types as there are no indications that there will be variable numbers. | N62: Electronic | Q62: 1800.5 | R62: =AVERAGE(R17:R17) -> 1779
N63: Smart | Q63: 0 | R63: =AVERAGE(R18:R18) -> 0
Q64: =SUM(Q61:Q63) -> 2276 | R64: =SUM(R61:R63) -> 2249
M65: Domestic LV - Single Phase | N65: Mechanical | Q65: =AVERAGE(Q21:R21) -> 235153 | R65: =AVERAGE(R21:R21) -> 232317
N66: Electronic | Q66: 186031 | R66: =AVERAGE(R22:R22) -> 183787
N67: Smart | Q67: 0 | R67: =AVERAGE(R23:R23) -> 0
Q68: =SUM(Q65:Q67) -> 421184 | R68: =SUM(R65:R67) -> 416104
M69: Domestic LV - Multi Phase | N69: Mechanical | Q69: =AVERAGE(Q26:R26) -> 5274.5 | R69: =AVERAGE(R26:R26) -> 5211
N70: Electronic | Q70: 10637.5 | R70: =AVERAGE(R27:R27) -> 10509
N71: Smart | Q71: 0 | R71: =AVERAGE(R28:R28) -> 0
Q72: =SUM(Q69:Q71) -> 15912 | R72: =SUM(R69:R71) -> 15720
M73: Domestic LV - CT Meters | N73: Mechanical | Q73: =AVERAGE(Q31:R31) -> 110.5 | R73: =AVERAGE(R31:R31) -> 109
N74: Electronic | Q74: 15 | R74: =AVERAGE(R32:R32) -> 15
N75: Smart | Q75: 0 | R75: =AVERAGE(R33:R33) -> 0
Q76: =SUM(Q73:Q75) -> 125.5 | R76: =SUM(R73:R75) -> 124
M78: Other Meters | N78: Electronic
M79: PAYG | N79: Electronic | Q79: =AVERAGE(Q36:R36) -> 29724.5 | R79: =AVERAGE(R36:R36) -> 29366
N80: Smart | Q80: =AVERAGE(Q37:R37) -> 0 | R80: =AVERAGE(R37:R37) -> 0
Q82: =SUM(Q79:Q81) -> 29724.5 | R82: =SUM(R79:R81) -> 29366
Q84: =Q56+Q60+Q64+Q68+Q72+Q76+Q82 -> 507583 | R84: =R56+R60+R64+R68+R72+R76+R82 -> 501461

Sheet Corporate OH
A1: ="Overheads to be Allocated (Corporate and Shared Costs) - " -> Overheads to be Allocated (Corporate and Shared Costs) -
A3: Annual Overheads to be Allocated | D3: =SUM(G8:G17) -> 2625548.552
A5: This data has been extracted from the step trend workpaper. The network direct overheads are applied to the various forms of control.
A7: WC Code | B7: Form of Control | C7: Labour | D7: Material | E7: Contractor | F7: Other | G7: Overheads | H7: Total Including OH | I7: Labour2 | J7: Material2 | K7: Contractor2 | L7: Other2 | M7: Total Network Opex | N7: Total (Network Services + OH + Network opex) | O7: inc Actual Provisions | P7: RIN subsubsub category | Q7: Service Classification | R7: RIN Sub Sub Sub Category Work Level Description
A8: REVMT | B8: Alternative Control Metering | C8: 0 | D8: 0 | E8: 0 | F8: 0 | G8: 0 | H8: 0 | I8: 0 | J8: 0 | K8: 0 | L8: 0 | M8: 0 | N8: 0 | P8: Opex Alternative Control Metering | Q8: Alternative Control | R8: Alternative Control Metering
A9: MDSMR | B9: Alternative Control Metering | C9: 1356519.064 | D9: 1278.542812 | E9: 217481.8835 | F9: 196354.3566 | G9: 2473318.167 | H9: 4244952.013 | I9: 0 | J9: 0 | K9: 0 | L9: 0 | M9: 0 | N9: 4244952.013 | P9: Opex Alternative Control Metering | Q9: Alternative Control | R9: Alternative Control Metering
A10: INTMT | B10: Alternative Control Metering | C10: 0 | D10: 0 | E10: 0 | F10: 0 | G10: 0 | H10: 0 | I10: 0 | J10: 0 | K10: 0 | L10: 0 | M10: 0 | N10: 0 | P10: Opex Alternative Control Metering | Q10: Alternative Control | R10: Alternative Control Metering
A11: DEPMT | B11: Alternative Control Metering | C11: 0 | D11: 0 | E11: 0 | F11: 0 | G11: 0 | H11: 0 | I11: 0 | J11: 0 | K11: 0 | L11: 0 | M11: 0 | N11: 0 | P11: Opex Alternative Control Metering | Q11: Alternative Control | R11: Alternative Control Metering
A12: ARMER | B12: Alternative Control Metering | C12: 31034.04774 | D12: 1428.358606 | E12: 79119.36718 | F12: 2866.486527 | G12: 45308.53036 | H12: 159756.7904 | I12: 0 | J12: 0 | K12: 0 | L12: 0 | M12: 0 | N12: 159756.7904 | P12: Opex Alternative Control Metering | Q12: Alternative Control | R12: Alternative Control Metering
A13: AIMET | B13: Alternative Control Metering | C13: 68526.62572 | D13: 0 | E13: 0 | F13: 3182.0507 | G13: 105883.4546 | H13: 177592.131 | I13: 0 | J13: 0 | K13: 0 | L13: 0 | M13: 0 | N13: 177592.131 | P13: Opex Alternative Control Metering | Q13: Alternative Control | R13: Alternative Control Metering
A14: ADMET | B14: Alternative Control Metering | C14: 1975.923373 | D14: 0 | E14: 0 | F14: 200.9721194 | G14: 1038.40084 | H14: 3215.296332 | I14: 0 | J14: 0 | K14: 0 | L14: 0 | M14: 0 | N14: 3215.296332 | P14: Opex Alternative Control Metering | Q14: Alternative Control | R14: Alternative Control Metering
A22: DD17 CAPEX OH | C22: Amount | D22: Internal Overheads | E22: Capitalised Overheads (Real$) | F22: Total Capex including Ohs and capitalised labour
A23: Financial Year 2015/16 | B23: HV Metering | C23: 17642.97554 | D23: 8104.053625 | E23: 3883.238075 | F23: 29630.26724 | G23: ='Master Data'!I29 -> 2017-18 | H23: Financial Year 2017/18 | I23: =SUMIF($A$23:$A$68,H23,$E$23:$E$68) -> 117457.0643
A24: Financial Year 2015/16 | B24: HV/LV Metering | C24: 11761.98369 | D24: 5402.702417 | E24: 2588.825383 | F24: 19753.51149 | G24: ='Master Data'!J29 -> 2018-19 | H24: Financial Year 2018/19 | I24: =SUMIF($A$23:$A$68,H24,$E$23:$E$68) -> 0
A25: Financial Year 2015/16 | B25: Business LV Metering | C25: 509012.4042 | D25: 150048.3022 | E25: 112034.1829 | F25: 771094.8892
A26: Financial Year 2015/16 | B26: Domestic LV Metering | C26: 2025852.791 | D26: 415104.5475 | E26: 445892.3991 | F26: 2886849.737
A27: Financial Year 2015/16 | B27: Off Peak Metering | C27: 129773.11 | D27: 14508.2369 | E27: 28563.20244 | F27: 172844.5494
A28: Financial Year 2016/17 | B28: HV Metering | C28: 16932.74039 | D28: 3961.388122 | E28: 3360.064719 | F28: 24254.19323
A29: Financial Year 2016/17 | B29: HV/LV Metering | C29: 11288.4936 | D29: 2640.925415 | E29: 2240.043146 | F29: 16169.46216
A30: Financial Year 2016/17 | B30: Business LV Metering | C30: 299145.0803 | D30: 69984.52349 | E30: 59361.14337 | F30: 428490.7471
A31: Financial Year 2016/17 | B31: Domestic LV Metering | C31: 778906.0581 | D31: 182223.8536 | E31: 154562.9771 | F31: 1115692.889
A32: Financial Year 2016/17 | B32: Off Peak Metering | C32: 22576.98719 | D32: 5281.850829 | E32: 4480.086292 | F32: 32338.92431
A33: Financial Year 2017/18 | B33: Wholesale Metering | C33: 31686.77036 | D33: 12904.69525 | E33: 6228.757059 | F33: 50820.22268
A34: Financial Year 2017/18 | B34: HV Metering | C34: 8487.566131 | D34: 2016.739036 | E34: 1668.424609 | F34: 12172.72978
A35: Financial Year 2017/18 | B35: HV/LV Metering | C35: 5658.37742 | D35: 1344.492691 | E35: 1112.283073 | F35: 8115.153183
A36: Financial Year 2017/18 | B36: Business LV Metering | C36: 149947.0016 | D36: 35629.0563 | E36: 29475.50142 | F36: 215051.5594
A37: Financial Year 2017/18 | B37: Domestic LV Metering | C37: 390428.042 | D37: 92769.99565 | E37: 76747.532 | F37: 559945.5697
A38: Financial Year 2017/18 | B38: Off Peak Metering | C38: 11316.75484 | D38: 2688.985381 | E38: 2224.566145 | F38: 16230.30637
A39: Financial Year 2018/19 | B39: HV Metering | C39: 0 | D39: 0 | E39: 0 | F39: 0
A40: Financial Year 2018/19 | B40: HV/LV Metering | C40: 0 | D40: 0 | E40: 0 | F40: 0
A41: Financial Year 2018/19 | B41: Business LV Metering | C41: 0 | D41: 0 | E41: 0 | F41: 0
A42: Financial Year 2018/19 | B42: Domestic LV Metering | C42: 0 | D42: 0 | E42: 0 | F42: 0
A43: Financial Year 2018/19 | B43: Off Peak Metering | C43: 0 | D43: 0 | E43: 0 | F43: 0

Sheet Building Block Inputs
A1: Input Variables
A2: ="Opening Regulated Asset Base for "&'Master Data'!I29&" ($m Nominal)" -> Opening Regulated Asset Base for 2017-18 ($m Nominal)
A3: The below Regulated Asset base numbers have been calculated using the Metering RFM. This process includes getting the previous determination asset base, adding in expenditure from the completed RIN's and forecast expenditure to get an opening Regulsted Asset Base for 2017.
A4: Asset Class Name | B4: 2017-18 Opening Asset Value | C4: Remaining Life | D4: Standard Life | E4: Opening Tax Value | F4: Tax Remaining Life | G4: Tax Standard Life | H4: Base Financial Year
A5: Meters - Electronic | B5: 29.29053255 | C5: 9.85141803 | D5: 15 | E5: =B5 -> 29.29053255 | F5: n/a | G5: n/a
A6: Meters - Mechanical | B6: 13.64699977 | C6: 15.02448487 | D6: 30 | E6: =B6 -> 13.64699977 | F6: n/a | G6: n/a
A7: Non Network - Motor Vehicles | B7: 0.4243173963 | C7: 3.706408249 | D7: 6 | E7: =B7 -> 0.4243173963 | F7: =C7 -> 3.706408249 | G7: =D7 -> 6
A8: Non Network - Minor Assets | B8: 1.233362665 | C8: 3.716525924 | D8: 5 | E8: 1.233362665 | F8: =C8 -> 3.716525924 | G8: 5
A9: Non Network - Non-System Property | B9: 1.152230172 | C9: 21.48313174 | D9: 40 | E9: 1.152230172 | F9: =C9 -> 21.48313174 | G9: 40
A10: Non Network - Spare Parts | B10: 0.641621301 | C10: n/a | D10: 5 | E10: 0.641621301 | F10: =C10 -> n/a | G10: 5
A11: Non Network - NEM Assets | B11: 0.4708984521 | C11: 1.808029134 | D11: 5 | E11: 0.4708984521 | F11: =C11 -> 1.808029134 | G11: 5
A12: Other assets - A
A13: Other assets - B
A14: Other assets - C
A15: Total | B15: =SUM(B5:B14) -> 46.8599623 | E15: =SUM(E5:E14) -> 46.8599623
A18: Forecast Capital Expenditure – As Incurred ($m Real 2014-15)
A19: Year | C19: ='Master Data'!F$29 -> 2014-15 | D19: ='Master Data'!G$29 -> 2015-16 | E19: ='Master Data'!H$29 -> 2016-17 | F19: ='Master Data'!I$29 -> 2017-18 | G19: ='Master Data'!J$29 -> 2018-19
A20: =A5 -> Meters - Electronic | C20: 4.406618808 | D20: 2.403374898 | E20: 2.38318922 | F20: 0.6317770643 | G20: 0
A21: Meters - Mechanical | C21: 0 | D21: 0 | E21: 0 | F21: 0 | G21: 0
A22: Non Network - Motor Vehicles | C22: 0.09069716026 | D22: 0.06441480018 | E22: 0.06441480018 | F22: 0.08540959257 | G22: 0
A23: Non Network - Minor Assets | C23: 0.2924983418 | D23: 0.2963080808 | E23: 0.4885893112 | F23: 0.7293856619 | G23: 0
A24: Non Network - Non-System Property | C24: 0.1111040213 | D24: 0.09018072025 | E24: 0.08798119049 | F24: 0.04556601764 | G24: 0
A25: Non Network - Spare Parts | C25: 0 | D25: 0 | E25: 0 | F25: 0 | G25: 0
A26: Non Network - NEM Assets | C26: 0 | D26: 0 | E26: 0 | F26: 0 | G26: 0
A27: Other assets - A
A28: Other assets - B
A29: Other assets - C
A30: Total | C30: =SUM(C20:C29) -> 4.900918332 | D30: 2.854278499 | E30: 3.024174522 | F30: 1.492138336 | G30: 0
A33: Forecast Operating and Maintenance Expenditure ($m Real 2014-15)
A34: Year | C34: ='Master Data'!F$29 -> 2014-15 | D34: ='Master Data'!G$29 -> 2015-16 | E34: ='Master Data'!H$29 -> 2016-17 | F34: ='Master Data'!I$29 -> 2017-18 | G34: ='Master Data'!J$29 -> 2018-19
A35: Avoidable Opex | B35: Net of POW OH | F35: 2.43168 | G35: 2.349884
A36: Unavoidable Opex | F36: 0 | G36: 0
A37: Corporate Overheads | F37: ='Corporate OH'!D3/1000000 -> 2.625548552 | G37: =F37 -> 2.625548552
A41: Total | C41: =SUM(C35:C40) -> 0 | D41: 0 | E41: 0 | F41: 5.057228552 | G41: 4.975432552
G49: =1000/64 -> 15.625

Sheet Unit Costs
E2: KM travel | F2: 20
E3: Rate | F3: 0.75
E4: Rate of occurance | F4: 0.1
B6: Contracted Instal costs | E6: Instal cost | F6: Travel costs (outside range) | G6: Process fee | H6: Total Cost | J6: Prices for the meters to buy
B7: Business LV - Single Phase | C7: New Installation Electronic | D7: New Connections | E7: 85 | F7: =$F$2*$F$3*$F$4 -> 1.5 | G7: 7 | H7: =SUM(E7:G7) -> 93.5 | J7: MK6E CT 1A CLS0.5 | K7: 1096
B8: Business LV - Single Phase | C8: New Installation Electronic | D8: Additions | E8: 85 | F8: =$F$2*$F$3*$F$4 -> 1.5 | G8: 7 | H8: =SUM(E8:G8) -> 93.5 | J8: MK6E CT 5A CLS0.5 | K8: 988
B9: Business LV - Single Phase | C9: Abolishments Mechanical | E9: 85 | F9: 1.5 | G9: 7 | H9: 93.5 | J9: MK7A WITH PAYGUARD | K9: 158
B10: Business LV - Single Phase | C10: Electronic Replacing Mechanical | D10: Network Replacement | E10: 85 | F10: 1.5 | G10: 7 | H10: 93.5 | J10: MK7C | K10: 104
B11: Domestic LV - Single Phase | C11: New Installation Electronic | D11: New Connections | E11: 85 | F11: 1.5 | G11: 7 | H11: 93.5 | J11: MK10A WC 10/100A | K11: 236
B12: Domestic LV - Single Phase | C12: New Installation Electronic | D12: Additions | E12: 85 | F12: 1.5 | G12: 7 | H12: 93.5 | J12: MK10D | K12: 301
B13: Domestic LV - Single Phase | C13: Abolishments Mechanical | E13: 85 | F13: 1.5 | G13: 7 | H13: 93.5 | J13: MK10A CT 3G | K13: 422
B14: Domestic LV - Single Phase | C14: Electronic Replacing Mechanical | D14: Network Replacement | E14: 85 | F14: 1.5 | G14: 7 | H14: 93.5 | J14: MK10E | K14: 301
B15: Business LV - Multi Phase | C15: New Installation Electronic | D15: New Connections | E15: 85 | F15: 1.5 | G15: 7 | H15: 93.5
B16: Business LV - Multi Phase | C16: New Installation Electronic | D16: Additions | E16: 85 | F16: 1.5 | G16: 7 | H16: 93.5
B17: Business LV - Multi Phase | C17: Abolishments Mechanical | E17: 85 | F17: 1.5 | G17: 7 | H17: 93.5 | J17: Use the old quoted prices for Mechanical due to there being no current price as they are not installed anymore
B18: Business LV - Multi Phase | C18: Electronic Replacing Mechanical | D18: Network Replacement | E18: 85 | F18: 1.5 | G18: 7 | H18: 93.5
B19: Domestic LV - Multi Phase | C19: New Installation Electronic | D19: New Connections | E19: 85 | F19: 1.5 | G19: 7 | H19: 93.5 | L19: 2011/12
B20: Domestic LV - Multi Phase | C20: New Installation Electronic | D20: Additions | E20: 85 | F20: 1.5 | G20: 7 | H20: 93.5 | L20: Meter Cost | M20: Install Costs | N20: Total Cost
B21: Domestic LV - Multi Phase | C21: Abolishments Mechanical | E21: 85 | F21: 1.5 | G21: 7 | H21: 93.5
B22: Domestic LV - Multi Phase | C22: Electronic Replacing Mechanical | E22: 85 | F22: 1.5 | G22: 7 | H22: 93.5 | J22: LV - Single Phase | K22: Mechanical | L22: 61.19509745 | M22: 88.36526129 | N22: 134.4195871
B23: Other Meters (PAYG) | C23: New Installation Electronic | D23: New Connections | E23: 227 | F23: 1.5 | G23: 7 | H23: =SUM(E23:G23) -> 235.5
B24: Other Meters (PAYG) | C24: Electronic Replacing Electronic | D24: Network Replacement | E24: 227 | F24: 1.5 | G24: 7 | H24: 235.5 | J24: LV - Multi Phase | K24: Mechanical | L24: 263.6952381 | M24: 66.57656673 | N24: 296.8366752
J26: LV - CT Meters | K26: Mechanical | L26: 263.6952381 | M26: 66.57656673 | N26: 296.8366752
D38: Costs per meter
D40: Expenses in 2014/15 costs or converted to 2014/15
D41: Purch cost | E41: On-costs | F41: Purch+on-cost | G41: Install Costs | H41: Total Cost | K41: Can't buy Mechanical Meters therefore index 2010 quote
B42: LV - Single Phase | C42: Electronic | D42: =K9 -> 158 | E42: =D42*$D$53 -> 17.854 | F42: =SUM(D42:E42) -> 175.854 | G42: =$H$7 -> 93.5 | H42: =SUM(F42:G42) -> 269.354 | K42: 2010 quote | L42: CPI Value | M42: Indexed Cost
B43: LV - Single Phase | C43: Mechanical | D43: =L22*'Master Data'!F$32 -> 66.02907567 | E43: =D43*$D$53 -> 7.46128555 | F43: =SUM(D43:E43) -> 73.49036122 | G43: =M22*'Master Data'!F$32 -> 95.34548954 | H43: =SUM(F43:G43) -> 168.8358508 | K43: 61.19509745 | L43: ='Master Data'!$B$31 -> 0.8948298798 | M43: =K43/L43 -> 68.38740954
B44: LV - Multi Phase | C44: Electronic | D44: =K12 -> 301 | E44: 34.013 | F44: =SUM(D44:E44) -> 335.013 | G44: =$H$15 -> 93.5 | H44: 428.513
B45: LV - Multi Phase | C45: Mechanical | D45: =L24*'Master Data'!F$32 -> 284.5252897 | E45: 32.15135773 | F45: 316.6766474 | G45: =M24*'Master Data'!F$32 -> 71.8356428 | H45: 388.5122902 | K45: 169.1220736 | L45: ='Master Data'!$B$31 -> 0.8948298798 | M45: =K45/L45 -> 188.9991354
B46: LV - CT Meters | C46: Electronic | D46: =K13 -> 422 | E46: 47.686 | F46: 469.686 | G46: =$H$7 -> 93.5 | H46: 563.186
B47: LV - CT Meters | C47: Mechanical | D47: =L26*'Master Data'!F$32 -> 284.5252897 | E47: 32.15135773 | F47: 316.6766474 | G47: =M26*'Master Data'!F$32 -> 71.8356428 | H47: 388.5122902 | K47: 169.1220736 | L47: ='Master Data'!$B$31 -> 0.8948298798 | M47: =K47/L47 -> 188.9991354
B48: Other Meters | C48: Electronic | D48: =K9 -> 158 | E48: 17.854 | F48: 175.854 | G48: =H23 -> 235.5 | H48: 411.354
E50: Source data
B51: Purch price | C51: Electronic | E51: From 2010 EDMI contract, as per the inventory officer and confirmed with the Metering team leader
C52: Mechanical+Other
B53: On-costs - | C53: Handling fee | D53: 0.113 | E53: Confirmed by the inventory officer the warehouse fee is 11.3%
B54: Installation costs | C54: all meters
B58: Meter data inputs - per Register
B59: Purchase Costs | D59: Escalated Costs
B60: Meter Type | D60: ='Master Data'!F$29 -> 2014-15 | E60: ='Master Data'!G$29 -> 2015-16 | F60: ='Master Data'!H$29 -> 2016-17 | G60: ='Master Data'!I$29 -> 2017-18 | H60: ='Master Data'!J$29 -> 2018-19
B61: LV - Single Phase | C61: Electronic | D61: =($F42)*'Master Data'!F$31 -> 175.854 | E61: =($F42)*'Master Data'!G$31 -> 180.25035 | F61: =($F42)*'Master Data'!H$31 -> 184.7566087 | G61: =($F42)*'Master Data'!I$31 -> 189.375524 | H61: =($F42)*'Master Data'!J$31 -> 194.1099121
B62: LV - Single Phase | C62: Mechanical | D62: =($F43)*'Master Data'!F$31 -> 73.49036122 | E62: =($F43)*'Master Data'!G$31 -> 75.32762025 | F62: =($F43)*'Master Data'!H$31 -> 77.21081075 | G62: =($F43)*'Master Data'!I$31 -> 79.14108102 | H62: =($F43)*'Master Data'!J$31 -> 81.11960805
B63: LV - Multi Phase | C63: Electronic | D63: =($F44)*'Master Data'!F$31 -> 335.013 | E63: =($F44)*'Master Data'!G$31 -> 343.388325 | F63: =($F44)*'Master Data'!H$31 -> 351.9730331 | G63: =($F44)*'Master Data'!I$31 -> 360.772359 | H63: =($F44)*'Master Data'!J$31 -> 369.7916679
B64: LV - Multi Phase | C64: Mechanical | D64: =($F45)*'Master Data'!F$31 -> 316.6766474 | E64: =($F45)*'Master Data'!G$31 -> 324.5935636 | F64: =($F45)*'Master Data'!H$31 -> 332.7084027 | G64: =($F45)*'Master Data'!I$31 -> 341.0261128 | H64: =($F45)*'Master Data'!J$31 -> 349.5517656
B65: LV - CT Meters | C65: Electronic | D65: =($F46)*'Master Data'!F$31 -> 469.686 | E65: =($F46)*'Master Data'!G$31 -> 481.42815 | F65: =($F46)*'Master Data'!H$31 -> 493.4638537 | G65: =($F46)*'Master Data'!I$31 -> 505.8004501 | H65: =($F46)*'Master Data'!J$31 -> 518.4454613
B66: LV - CT Meters | C66: Mechanical | D66: =($F47)*'Master Data'!F$31 -> 316.6766474 | E66: =($F47)*'Master Data'!G$31 -> 324.5935636 | F66: =($F47)*'Master Data'!H$31 -> 332.7084027 | G66: =($F47)*'Master Data'!I$31 -> 341.0261128 | H66: =($F47)*'Master Data'!J$31 -> 349.5517656
B67: Other Meters | C67: Electronic | D67: =($F48)*'Master Data'!F$31 -> 175.854 | E67: =($F48)*'Master Data'!G$31 -> 180.25035 | F67: =($F48)*'Master Data'!H$31 -> 184.7566087 | G67: =($F48)*'Master Data'!I$31 -> 189.375524 | H67: =($F48)*'Master Data'!J$31 -> 194.1099121
B69: Installation Costs | D69: Escalated Costs
B70: Meter Type | D70: ='Master Data'!F$29 -> 2014-15 | E70: ='Master Data'!G$29 -> 2015-16 | F70: ='Master Data'!H$29 -> 2016-17 | G70: ='Master Data'!I$29 -> 2017-18 | H70: ='Master Data'!J$29 -> 2018-19
B71: LV - Single Phase | C71: Electronic | D71: =($G42)*'Master Data'!F$31 -> 93.5 | E71: =($G42)*'Master Data'!G$31 -> 95.8375 | F71: =($G42)*'Master Data'!H$31 -> 98.2334375 | G71: =($G42)*'Master Data'!I$31 -> 100.6892734 | H71: =($G42)*'Master Data'!J$31 -> 103.2065053
B72: LV - Single Phase | C72: Mechanical | D72: =($G43)*'Master Data'!F$31 -> 95.34548954 | E72: =($G43)*'Master Data'!G$31 -> 97.72912678 | F72: =($G43)*'Master Data'!H$31 -> 100.1723549 | G72: =($G43)*'Master Data'!I$31 -> 102.6766638 | H72: =($G43)*'Master Data'!J$31 -> 105.2435804
B73: LV - Multi Phase | C73: Electronic | D73: =($G44)*'Master Data'!F$31 -> 93.5 | E73: =($G44)*'Master Data'!G$31 -> 95.8375 | F73: =($G44)*'Master Data'!H$31 -> 98.2334375 | G73: =($G44)*'Master Data'!I$31 -> 100.6892734 | H73: =($G44)*'Master Data'!J$31 -> 103.2065053
B74: LV - Multi Phase | C74: Mechanical | D74: =($G45)*'Master Data'!F$31 -> 71.8356428 | E74: =($G45)*'Master Data'!G$31 -> 73.63153387 | F74: =($G45)*'Master Data'!H$31 -> 75.47232222 | G74: =($G45)*'Master Data'!I$31 -> 77.35913028 | H74: =($G45)*'Master Data'!J$31 -> 79.29310853
B75: LV - CT Meters | C75: Electronic | D75: =($G46)*'Master Data'!F$31 -> 93.5 | E75: =($G46)*'Master Data'!G$31 -> 95.8375 | F75: =($G46)*'Master Data'!H$31 -> 98.2334375 | G75: =($G46)*'Master Data'!I$31 -> 100.6892734 | H75: =($G46)*'Master Data'!J$31 -> 103.2065053
B76: LV - CT Meters | C76: Mechanical | D76: =($G47)*'Master Data'!F$31 -> 71.8356428 | E76: =($G47)*'Master Data'!G$31 -> 73.63153387 | F76: =($G47)*'Master Data'!H$31 -> 75.47232222 | G76: =($G47)*'Master Data'!I$31 -> 77.35913028 | H76: =($G47)*'Master Data'!J$31 -> 79.29310853
B77: Other Meters | C77: Electronic | D77: =($G48)*'Master Data'!F$31 -> 235.5 | E77: =($G48)*'Master Data'!G$31 -> 241.3875 | F77: =($G48)*'Master Data'!H$31 -> 247.4221875 | G77: =($G48)*'Master Data'!I$31 -> 253.6077422 | H77: =($G48)*'Master Data'!J$31 -> 259.9479357
B79: Total Costs | D79: ='Master Data'!F$29 -> 2014-15 | E79: ='Master Data'!G$29 -> 2015-16 | F79: ='Master Data'!H$29 -> 2016-17 | G79: ='Master Data'!I$29 -> 2017-18 | H79: ='Master Data'!J$29 -> 2018-19
B80: Meter Type
B81: LV - Single Phase | C81: Electronic | D81: =SUM(D61,D71) -> 269.354 | E81: 276.08785 | F81: 282.9900462 | G81: 290.0647974 | H81: 297.3164173
B82: LV - Single Phase | C82: Mechanical | D82: 168.8358508 | E82: 173.056747 | F82: 177.3831657 | G82: 181.8177448 | H82: 186.3631885
B83: LV - Multi Phase | C83: Electronic | D83: 428.513 | E83: 439.225825 | F83: 450.2064706 | G83: 461.4616324 | H83: 472.9981732
B84: LV - Multi Phase | C84: Mechanical | D84: 388.5122902 | E84: 398.2250975 | F84: 408.1807249 | G84: 418.385243 | H84: 428.8448741
B85: LV - CT Meters | C85: Electronic | D85: 563.186 | E85: 577.26565 | F85: 591.6972912 | G85: 606.4897235 | H85: 621.6519666
B86: LV - CT Meters | C86: Mechanical | D86: 388.5122902 | E86: 398.2250975 | F86: 408.1807249 | G86: 418.385243 | H86: 428.8448741
B87: Other Meters | C87: Electronic | D87: 411.354 | E87: 421.63785 | F87: 432.1787962 | G87: 442.9832662 | H87: 454.0578478

Sheet Registar data Pivot
B4: Data received from the metering team leader as well ast the allocation into the vaious options
C7: mech | D7: elec | G7: Types of meters | H7: Pivot Data | I7: Check
A8: Domestic | B8: single | C8: =SUM(J33:M33,O33) -> 259105 | D8: =SUM(J30:M32) -> 153105 | E8: =SUM(C8:D8) -> 412210 | G8: =E8+E11+E14 -> 464725 | H8: =SUMIF($A$19:$A$33,B8,$P$19:$P$33) -> 464725 | I8: =G8-H8 -> 0
A9: Domestic | B9: multi | C9: =SUM(J29:M29) -> 5700 | D9: =SUM(J26:M28) -> 8909 | E9: =SUM(C9:D9) -> 14609 | G9: =E9+E12 -> 35047 | H9: =SUMIF($A$19:$A$33,B9,$P$19:$P$33) -> 35047 | I9: =G9-H9 -> 0
A10: Domestic | B10: CT | C10: =SUM(J22:M22) -> 82 | D10: =SUM(J19:M21) -> 18 | E10: 100 | G10: =E10+E13 -> 2347 | H10: =SUMIF($A$19:$A$33,B10,$P$19:$P$33) -> 2347 | I10: 0
A11: Business | B11: single | C11: =SUM(D33:I33) -> 18205 | D11: =SUM(D30:I32) -> 3928 | E11: 22133 | G11: =SUM(G8:G10) -> 502119 | H11: =SUM(H8:H10) -> 502119
A12: Business | B12: multi | C12: =SUM(D29:I29) -> 7509 | D12: =SUM(D26:I28) -> 12929 | E12: 20438
A13: Business | B13: CT | C13: =SUM(D22:I22) -> 602 | D13: =SUM(D19:I21) -> 1645 | E13: 2247
A14: res | B14: other (payg) | C14: 0 | D14: =SUM(O30:O32) -> 30382 | E14: 30382
C15: =SUM(C8:C14) -> 291203 | D15: =SUM(D8:D14) -> 210916 | E15: =SUM(C15:D15) -> 502119
C16: NA / Errors
D17: Typers of meters and the tarrif applied to it. Colours represent the alignments with the summary table
C18: Row Labels | D18: Sum of TAS22 | E18: Sum of TAS34 | F18: Sum of TAS73 | G18: Sum of TAS75 | H18: Sum of TAS82 | I18: Sum of TAS94 | J18: Sum of TAS31 | K18: Sum of TAS41 | L18: Sum of TAS61 | M18: Sum of TAS63 | N18: Sum of TAS93 | O18: Sum of TAS101
A19: CT | B19: elec | C19: MM10 | D19: 75 | E19: 0 | F19: 0 | G19: 151 | H19: 0 | I19: 102 | J19: 0 | K19: 1 | L19: 0 | M19: 0 | N19: 0 | O19: 0 | P19: =SUM(D19:M19,O19) -> 329
A20: CT | B20: elec | C20: MM12 | D20: 677 | E20: 1 | F20: 0 | G20: 350 | H20: 14 | I20: 19 | J20: 8 | K20: 2 | L20: 4 | M20: 0 | N20: 0 | O20: 0 | P20: =SUM(D20:M20,O20) -> 1075
A21: CT | B21: elec | C21: MM9 | D21: 101 | E21: 0 | F21: 0 | G21: 96 | H21: 12 | I21: 47 | J21: 3 | K21: 0 | L21: 0 | M21: 0 | N21: 0 | O21: 0 | P21: 259
A22: CT | B22: mech | C22: MM11 | D22: 599 | E22: 2 | F22: 1 | G22: 0 | H22: 0 | I22: 0 | J22: 35 | K22: 32 | L22: 15 | M22: 0 | N22: 0 | O22: 0 | P22: 684
A23: HV | B23: elec | C23: MM13 | D23: 0 | E23: 0 | F23: 0 | G23: 0 | H23: 0 | I23: 0 | J23: 0 | K23: 0 | L23: 0 | M23: 0 | N23: 0 | O23: 0
A24: HV | B24: elec | C24: MM15 | D24: 0 | E24: 0 | F24: 0 | G24: 0 | H24: 0 | I24: 0 | J24: 0 | K24: 0 | L24: 0 | M24: 0 | N24: 0 | O24: 0
A25: HV | B25: mech | C25: MM14 | D25: 0 | E25: 0 | F25: 0 | G25: 0 | H25: 0 | I25: 0 | J25: 0 | K25: 0 | L25: 0 | M25: 0 | N25: 0 | O25: 0
A26: multi | B26: elec | C26: MM5 | D26: 1006 | E26: 0 | F26: 0 | G26: 1317 | H26: 4 | I26: 210 | J26: 957 | K26: 228 | L26: 23 | M26: 0 | N26: 0 | O26: 0 | P26: =SUM(D26:M26,O26) -> 3745
A27: multi | B27: elec | C27: MM6 | D27: 370 | E27: 0 | F27: 0 | G27: 409 | H27: 11 | I27: 174 | J27: 242 | K27: 132 | L27: 44 | M27: 0 | N27: 0 | O27: 0 | P27: =SUM(D27:M27,O27) -> 1382
A28: multi | B28: elec | C28: MM8 | D28: 8418 | E28: 1 | F28: 1 | G28: 567 | H28: 59 | I28: 382 | J28: 4300 | K28: 1970 | L28: 1012 | M28: 1 | N28: 0 | O28: 0 | P28: 16711
A29: multi | B29: mech | C29: MM7 | D29: 7445 | E29: 7 | F29: 2 | G29: 24 | H29: 3 | I29: 28 | J29: 2578 | K29: 2488 | L29: 632 | M29: 2 | N29: 0 | O29: 0 | P29: 13209
A30: single | B30: elec | C30: MM1 | D30: 2132 | E30: 4 | F30: 0 | G30: 3 | H30: 0 | I30: 121 | J30: 44391 | K30: 38442 | L30: 2012 | M30: 0 | N30: 0 | O30: 8411 | P30: 95516
A31: single | B31: elec | C31: MM4 | D31: 1640 | E31: 0 | F31: 0 | G31: 1 | H31: 0 | I31: 1 | J31: 31765 | K31: 31565 | L31: 3887 | M31: 0 | N31: 0 | O31: 1511 | P31: 70370
A32: single | B32: elec payg | C32: MM2 | D32: 26 | E32: 0 | F32: 0 | G32: 0 | H32: 0 | I32: 0 | J32: 431 | K32: 505 | L32: 107 | M32: 0 | N32: 0 | O32: 20460 | P32: 21529
A33: single | B33: mech | C33: MM3 | D33: 18177 | E33: 15 | F33: 0 | G33: 3 | H33: 0 | I33: 10 | J33: 123774 | K33: 118622 | L33: 16603 | M33: 1 | N33: 0 | O33: 105 | P33: 277310
C34: Grand Total | D34: 40671 | E34: 30 | F34: 4 | G34: 2922 | H34: 103 | I34: 1095 | J34: 208484 | K34: 193988 | L34: 24339 | M34: 4 | N34: 1 | O34: 30487 | P34: =SUM(P19:P33) -> 502119

Sheet Master Data
A1: Previous Year | B1: =EOMONTH($B$2,-12) -> 2014-06-30 | D1: =TEXT(B1,"YY") -> 14 | E1: =TEXT(B1,"YYy") -> 2014 | F1: =TEXT(B1,"mmm") -> Jun | G1: =TEXT(B1,"mmmm") -> June
A2: Current Year | B2: =EOMONTH($B$3,-1) -> 2015-06-30 | D2: =TEXT(B2,"YY") -> 15 | E2: =TEXT(B2,"YYy") -> 2015 | F2: =TEXT(B2,"mmm") -> Jun | G2: =TEXT(B2,"mmmm") -> June | H2: =E1&"-"&D2 -> 2014-15
A3: Year Start | B3: 2015-07-01 | C3: 2015 | D3: =TEXT(B3,"YY") -> 15 | E3: =TEXT(B3,"YYy") -> 2015 | F3: =TEXT(B3,"mmm") -> Jul | G3: =TEXT(B3,"mmmm") -> July
A4: Year 1 | B4: =EOMONTH($B$3,11) -> 2016-06-30 | D4: =TEXT(B4,"YY") -> 16 | E4: =TEXT(B4,"YYy") -> 2016 | F4: =TEXT(B4,"mmm") -> Jun | G4: =TEXT(B4,"mmmm") -> June | H4: =E3&"-"&D4 -> 2015-16
A5: Year 2 | B5: =EOMONTH($B$3,23) -> 2017-06-30 | D5: =TEXT(B5,"YY") -> 17 | E5: =TEXT(B5,"YYy") -> 2017 | F5: =TEXT(B5,"mmm") -> Jun | G5: =TEXT(B5,"mmmm") -> June | H5: =E4&"-"&D5 -> 2016-17
A6: Year 3 | B6: =EOMONTH($B$3,35) -> 2018-06-30 | D6: 18 | E6: 2018 | F6: Jun | G6: June | H6: 2017-18
A7: Year 4 | B7: =EOMONTH($B$3,47) -> 2019-06-30 | D7: 19 | E7: 2019 | F7: Jun | G7: June | H7: 2018-19
A8: Year 5 | B8: =EOMONTH($B$3,59) -> 2020-06-30 | D8: 20 | E8: 2020 | F8: Jun | G8: June | H8: 2019-20
A9: Year 6 | B9: =EOMONTH($B$3,71) -> 2021-06-30 | D9: 21 | E9: 2021 | F9: Jun | G9: June | H9: 2020-21
A10: Year 7 | B10: =EOMONTH($B$3,83) -> 2022-06-30 | D10: 22 | E10: 2022 | F10: Jun | G10: June | H10: 2021-22
A11: Year 8 | B11: =EOMONTH($B$3,95) -> 2023-06-30 | D11: 23 | E11: 2023 | F11: Jun | G11: June | H11: 2022-23
A12: Year 9 | B12: =EOMONTH($B$3,107) -> 2024-06-30 | D12: 24 | E12: 2024 | F12: Jun | G12: June | H12: 2023-24
A13: Year 10 | B13: =EOMONTH($B$3,119) -> 2025-06-30 | D13: 25 | E13: 2025 | F13: Jun | G13: June | H13: 2024-25
A18: Year | F18: Current | G18: =A4 -> Year 1 | H18: =A5 -> Year 2 | I18: =A6 -> Year 3 | J18: =A7 -> Year 4 | K18: =A8 -> Year 5 | L18: =A9 -> Year 6 | M18: =A10 -> Year 7 | N18: =A11 -> Year 8 | O18: =A12 -> Year 9 | P18: =A13 -> Year 10
F19: =C3 -> 2015 | G19: =F19+1 -> 2016 | H19: =G19+1 -> 2017 | I19: 2018 | J19: 2019 | K19: 2020 | L19: 2021 | M19: 2022 | N19: 2023 | O19: 2024 | P19: =O19+1 -> 2025
F20: =H2 -> 2014-15 | G20: =H4 -> 2015-16 | H20: =H5 -> 2016-17 | I20: =H6 -> 2017-18 | J20: =H7 -> 2018-19 | K20: =H8 -> 2019-20 | L20: =H9 -> 2020-21 | M20: =H10 -> 2021-22 | N20: =H11 -> 2022-23 | O20: =H12 -> 2023-24 | P20: =H13 -> 2024-25
B22: =EOMONTH(C22,-12) -> 2011-06-30 | C22: 2012-06-30 | D22: 2013-06-30 | E22: =EOMONTH(F22,-12) -> 2014-06-30 | F22: =B2 -> 2015-06-30 | G22: =B4 -> 2016-06-30 | H22: =B5 -> 2017-06-30 | I22: =B6 -> 2018-06-30 | J22: =B7 -> 2019-06-30 | K22: =B8 -> 2020-06-30 | L22: =B9 -> 2021-06-30 | M22: =B10 -> 2022-06-30 | N22: =B11 -> 2023-06-30 | O22: =B12 -> 2024-06-30 | P22: =B13 -> 2025-06-30
A23: Index | C23: =C22-B22 -> 366 | D23: 365 | E23: 365 | F23: 365 | G23: =G22-F22 -> 366 | H23: =H22-G22 -> 365 | I23: =I22-H22 -> 365 | J23: 365 | K23: 366 | L23: 365 | M23: 365 | N23: 365 | O23: 366 | P23: 365
A24: Inflation rate | G24: =C36 -> 0.025 | H24: =G24 -> 0.025 | I24: =H24 -> 0.025 | J24: 0.025 | K24: 0.025 | L24: 0.025 | M24: 0.025 | N24: 0.025 | O24: 0.025 | P24: 0.025
A25: Salary costs EBA/award increases | G25: =G24+1% -> 0.035 | H25: =H24+1% -> 0.035 | I25: 0.035 | J25: 0.035 | K25: 0.035 | L25: 0.035 | M25: 0.035 | N25: 0.035 | O25: 0.035 | P25: 0.035
F27: 2012-13
C28: Year -1 | D28: Year -2 | E28: Year -1 | F28: ='Master Data'!F18 -> Current | G28: ='Master Data'!G18 -> Year 1 | H28: ='Master Data'!H18 -> Year 2 | I28: ='Master Data'!I18 -> Year 3 | J28: ='Master Data'!J18 -> Year 4 | K28: ='Master Data'!K18 -> Year 5 | L28: ='Master Data'!L18 -> Year 6 | M28: ='Master Data'!M18 -> Year 7 | N28: ='Master Data'!N18 -> Year 8 | O28: ='Master Data'!O18 -> Year 9 | P28: ='Master Data'!P18 -> Year 10
B29: 2010-11 | C29: 2011-12 | D29: 2012-13 | E29: 2013-14 | F29: ='Master Data'!F20 -> 2014-15 | G29: ='Master Data'!G20 -> 2015-16 | H29: ='Master Data'!H20 -> 2016-17 | I29: ='Master Data'!I20 -> 2017-18 | J29: ='Master Data'!J20 -> 2018-19 | K29: ='Master Data'!K20 -> 2019-20 | L29: ='Master Data'!L20 -> 2020-21 | M29: ='Master Data'!M20 -> 2021-22 | N29: ='Master Data'!N20 -> 2022-23 | O29: ='Master Data'!O20 -> 2023-24 | P29: ='Master Data'!P20 -> 2024-25
A30: CPI (consistent with AER RFM) | B30: 0.02654867257 | C30: 0.03103448276 | D30: 0.026 | E30: 0.026 | F30: ='Master Data'!$C$36 -> 0.025 | G30: ='Master Data'!$C$36 -> 0.025 | H30: ='Master Data'!$C$36 -> 0.025 | I30: ='Master Data'!$C$36 -> 0.025 | J30: ='Master Data'!$C$36 -> 0.025 | K30: ='Master Data'!$C$36 -> 0.025 | L30: ='Master Data'!$C$36 -> 0.025 | M30: ='Master Data'!$C$36 -> 0.025 | N30: ='Master Data'!$C$36 -> 0.025 | O30: ='Master Data'!$C$36 -> 0.025 | P30: ='Master Data'!$C$36 -> 0.025
A31: Cumulative CPI | B31: =C31-(C31*B30) -> 0.8948298798 | C31: =D31-(D31*C30) -> 0.919234331 | D31: =E31-(E31*D30) -> 0.948676 | E31: =F31-(F31*E30) -> 0.974 | F31: 1 | G31: =F31*(1+G$30) -> 1.025 | H31: 1.050625 | I31: 1.076890625 | J31: 1.103812891 | K31: 1.131408213 | L31: 1.159693418 | M31: 1.188685754 | N31: 1.218402898 | O31: 1.24886297 | P31: 1.280084544
C32: 1 | D32: =C32*(1+D30) -> 1.026 | E32: =D32*(1+E30) -> 1.052676 | F32: 1.0789929
A33: 2017/18 dollars | I33: 1 | J33: =I33*(1+J30) -> 1.025 | K33: =J33*(1+K30) -> 1.050625 | L33: =K33*(1+L30) -> 1.076890625 | M33: =L33*(1+M30) -> 1.103812891 | N33: 1.131408213 | O33: 1.159693418
A34: 2016/17 dollars | H34: 1 | I34: =H34*(1+I30) -> 1.025 | J34: =I34*(1+J30) -> 1.050625 | K34: 1.076890625 | L34: 1.103812891 | M34: 1.131408213 | N34: 1.159693418 | O34: =N34*(1+O30) -> 1.188685754
A35: General
A36: Inflation Rate (f) | C36: 0.025
A37: WACC - discount rate | C37: =C51 -> 0.0623
A38: Scenario Risk Factor | C38: 0 | D38: 0.3
A39: Nominal Tax Rate | C39: 0.3
A40: Useful Life | C40: 7 | D40: years
A41: All $$ are assumed ex GST
A43: Definitions
A45: Model Rounding | B45: 100
C48: Distribution | D48: Transmission
A49: Post-tax Nominal Return on Equity(pre-imp) | C49: 0.0869
A50: Post-tax Real Return on Equity(pre-imp) | C50: 0.05935672515
A51: Nominal Vanilla WACC | C51: 0.0623 | D51: 0.06482
A52: Real Vanilla WACC | C52: 0.0364 | D52: 0.03884878049
A53: Post-tax Nominal WACC | C53: 0.0551 | D53: 0.05825337574
A54: Post-tax Real WACC | C54: 0.0294 | D54: 0.03244231779
A55: Pre-tax Nominal WACC | C55: 0.0678 | D55: 0.06800271936
A56: Pre-tax Real WACC | C56: 0.0417 | D56: 0.04195387255
A57: Nominal Tax Allowance | C57: 0.0127 | D57: 0.009749343627
A58: Real Tax Allowance | C58: 0.0124 | D58: 0.009511554758
A68: Asset Lives (yrs) | B68: Current | C68: Proposed
A69: Meter Type | B69: 2012/13 - 16/17 | C69: 2017-22
A70: Mechanical | B70: 30 | C70: 30
A71: Electronic | B71: 15 | C71: 15

Sheet SinglePhases (hidden)
A1: Phase | B1: 1
A2: CT | B2: 1
B4: Values
A5: WASP | B5: Sum of Domestic | C5: Sum of Business
A6: MM1 | B6: 84845 | C6: 2508
A7: MM2 | B7: 1043 | C7: 26
A8: MM3 | B8: 258999 | C8: 18128
A9: MM4 | B9: 67217 | C9: 1646
A10: Grand Total | B10: 412104 | C10: 22308

Sheet MultiPhases (hidden)
A1: Phase | B1: 3
A2: CT | B2: 1
B4: Values
A5: WASP | B5: Sum of Domestic | C5: Sum of Business
A6: MM10 | B6: 1 | C6: 6
A7: MM11 | B7: 57 | C7: 16
A8: MM12 | B8: 0 | C8: 3
A9: MM14 | B9: 1 | C9: 0
A10: MM5 | B10: 1208 | C10: 5598
A11: MM6 | B11: 418 | C11: 2149
A12: MM7 | B12: 5700 | C12: 7612
A13: MM8 | B13: 7283 | C13: 11434
A14: Grand Total | B14: 14668 | C14: 26818

Sheet CTs (hidden)
A1: Phase | B1: (All)
A2: CT | B2: (Multiple Items)
B4: Values
A5: WASP | B5: Sum of Domestic | C5: Sum of Business
A6: MM10 | B6: 0 | C6: 828
A7: MM11 | B7: 25 | C7: 587
A8: MM12 | B8: 14 | C8: 1824
A9: MM13 | B9: 0 | C9: 3
A10: MM14 | B10: 0 | C10: 2
A11: MM15 | B11: 0 | C11: 6
A12: MM3 | B12: 1 | C12: 103
A13: MM5 | B13: 0 | C13: 1
A14: MM6 | B14: 0 | C14: 3
A15: MM7 | B15: 0 | C15: 9
A16: MM8 | B16: 0 | C16: 11
A17: MM9 | B17: 3 | C17: 566
A18: Grand Total | B18: 43 | C18: 3943
